Department family,Entity,Date,Expense type,Expense area,Supplier,Transaction number,Amount
Department of Health,Leicestershire Partnership NHS Trust,04/01/22,GP IT Expenditure,Area Team,DELL COMPUTERS,7402771501,30396.00
Department of Health,Leicestershire Partnership NHS Trust,04/01/22,GP IT Expenditure,Area Team,DELL COMPUTERS,7402771502,27459.60
Department of Health,Leicestershire Partnership NHS Trust,04/01/22,GP IT Expenditure,Area Team,DELL COMPUTERS,7402771674,28020.00
Department of Health,Leicestershire Partnership NHS Trust,04/01/22,GP IT Expenditure,Area Team,DELL COMPUTERS,7402771675,30420.00
Department of Health,Leicestershire Partnership NHS Trust,04/01/22,CHP Estates Management,Merlyn Vaz Centre (CHP),COMM HLTH PARTNERSHIPS LTD,0060225527,30935.19
Department of Health,Leicestershire Partnership NHS Trust,04/01/22,CHP Estates Management,Merlyn Vaz Centre (CHP),COMM HLTH PARTNERSHIPS LTD,0060225530,27744.56
Department of Health,Leicestershire Partnership NHS Trust,04/01/22,Services / Recharges from Other NHS Bodies,CAMHS Outpatients,UHL NHS TRUST (RWE),L0256156,131926.20
Department of Health,Leicestershire Partnership NHS Trust,04/01/22,Med Trainees - FY1,Medical Trainees,UHL NHS TRUST (RWE),L0256211,37345.29
Department of Health,Leicestershire Partnership NHS Trust,04/01/22,GP IT Expenditure,Area Team,DELL COMPUTERS,7402771466,28020.00
Department of Health,Leicestershire Partnership NHS Trust,04/01/22,Services / Recharges from NHS Trusts,Inter Unit I & E Distribution,UHL NHS TRUST (RWE),C0026289,-42801.66
Department of Health,Leicestershire Partnership NHS Trust,04/01/22,Healthcare Services / Recharges from Non-NHS Bodies,AMH - Central Access Point,TURNING POINT,SI-TPS-00037093,21486.83
Department of Health,Leicestershire Partnership NHS Trust,05/01/22,Unitary Payment,"The Agnes Unit (AKA Assessment and Treatment Centre) (P85, LPT)",ARDEN PARTNERSHIP (LEICESTER),SI0087,121308.87
Department of Health,Leicestershire Partnership NHS Trust,05/01/22,WIP Project Not in BS - Buildings excl Dwellings,Work in Progress,TILBURY DOUGLAS CONSTRUCTION LTD,21120378,38422.27
Department of Health,Leicestershire Partnership NHS Trust,05/01/22,WIP Project Not in BS - Buildings excl Dwellings,Work in Progress,TILBURY DOUGLAS CONSTRUCTION LTD,21120381,39924.35
Department of Health,Leicestershire Partnership NHS Trust,05/01/22,WIP Project Not in BS - Buildings excl Dwellings,Work in Progress,TILBURY DOUGLAS CONSTRUCTION LTD,21120393,80505.13
Department of Health,Leicestershire Partnership NHS Trust,05/01/22,WIP Project Not in BS - Buildings excl Dwellings,Work in Progress,TILBURY DOUGLAS CONSTRUCTION LTD,21120400,196309.18
Department of Health,Leicestershire Partnership NHS Trust,05/01/22,WIP Project Not in BS - Buildings excl Dwellings,Work in Progress,TILBURY DOUGLAS CONSTRUCTION LTD,21120385,38891.30
Department of Health,Leicestershire Partnership NHS Trust,05/01/22,WIP Project Not in BS - Buildings excl Dwellings,Work in Progress,TILBURY DOUGLAS CONSTRUCTION LTD,21120402,93341.84
Department of Health,Leicestershire Partnership NHS Trust,05/01/22,Crs_NHS_LT1y -Resus Inventory Supplied.,Balance Sheet Collection,SUPPLY CHAIN CO LTD,1122180850,45358.38
Department of Health,Leicestershire Partnership NHS Trust,05/01/22,Healthcare Services / Recharges from Non-NHS Bodies,Adult Eating Disorder Collaborative,RIVERDALE GRANGE LIMITED,855,-61136.15
Department of Health,Leicestershire Partnership NHS Trust,05/01/22,Nurse - Band 6 -Agency,CAMHS HUB / CAP,HCL SOCIAL CARE,HWSI0000966,8185.12
Department of Health,Leicestershire Partnership NHS Trust,05/01/22,Nurse - Band 6 -Agency,CAMHS Waiting List Monies,HCL SOCIAL CARE,HWSI0000966,23420.25
Department of Health,Leicestershire Partnership NHS Trust,05/01/22,Nurse - Band 6 -Agency,Crisis Response and Home Treatment,HCL SOCIAL CARE,HWSI0000966,1134.20
Department of Health,Leicestershire Partnership NHS Trust,05/01/22,NURSE - BAND 2 - AGENCY,CAMHS ED Team,HCL NURSING,HNSI0000890,783.03
Department of Health,Leicestershire Partnership NHS Trust,05/01/22,NURSE - BAND 2 - AGENCY,CAMHS Inpatient Service,HCL NURSING,HNSI0000890,16720.62
Department of Health,Leicestershire Partnership NHS Trust,05/01/22,NURSE - BAND 5 - AGENCY,CAMHS Inpatient Service,HCL NURSING,HNSI0000890,2978.00
Department of Health,Leicestershire Partnership NHS Trust,05/01/22,NURSE - BAND 5 - AGENCY,CAMHS Learning Disabilities and Outreach Team,HCL NURSING,HNSI0000890,241.34
Department of Health,Leicestershire Partnership NHS Trust,05/01/22,NURSE - BAND 2 - AGENCY,CAMHS Outpatients,HCL NURSING,HNSI0000890,3215.12
Department of Health,Leicestershire Partnership NHS Trust,05/01/22,Nurse - Band 6 -Agency,CAMHS Waiting List Monies,HCL NURSING,HNSI0000890,5389.52
Department of Health,Leicestershire Partnership NHS Trust,05/01/22,NURSE - BAND 2 - AGENCY,Crisis Response and Home Treatment,HCL NURSING,HNSI0000890,662.74
Department of Health,Leicestershire Partnership NHS Trust,05/01/22,NURSE - BAND 2 - AGENCY,Langley Ward ED Inpatient Service,HCL NURSING,HNSI0000890,1643.94
Department of Health,Leicestershire Partnership NHS Trust,05/01/22,NURSE - BAND 5 - AGENCY,Langley Ward ED Inpatient Service,HCL NURSING,HNSI0000890,799.85
Department of Health,Leicestershire Partnership NHS Trust,05/01/22,Nurse - Band 6 -Agency,CAMHS HUB / CAP,HCL SOCIAL CARE,HWSI0000976,6462.64
Department of Health,Leicestershire Partnership NHS Trust,05/01/22,Nurse - Band 6 -Agency,CAMHS Waiting List Monies,HCL SOCIAL CARE,HWSI0000976,20226.07
Department of Health,Leicestershire Partnership NHS Trust,05/01/22,Nurse - Band 6 -Agency,Crisis Response and Home Treatment,HCL SOCIAL CARE,HWSI0000976,1961.40
Department of Health,Leicestershire Partnership NHS Trust,05/01/22,NURSE - BAND 2 - AGENCY,CAMHS ED Team,HCL NURSING,HNSI0000895,2410.31
Department of Health,Leicestershire Partnership NHS Trust,05/01/22,NURSE - BAND 2 - AGENCY,CAMHS Inpatient Service,HCL NURSING,HNSI0000895,12301.53
Department of Health,Leicestershire Partnership NHS Trust,05/01/22,NURSE - BAND 5 - AGENCY,CAMHS Inpatient Service,HCL NURSING,HNSI0000895,3324.26
Department of Health,Leicestershire Partnership NHS Trust,05/01/22,NURSE - BAND 2 - AGENCY,CAMHS Outpatients,HCL NURSING,HNSI0000895,2461.41
Department of Health,Leicestershire Partnership NHS Trust,05/01/22,Nurse - Band 6 -Agency,CAMHS Waiting List Monies,HCL NURSING,HNSI0000895,5091.87
Department of Health,Leicestershire Partnership NHS Trust,05/01/22,NURSE - BAND 2 - AGENCY,Langley Ward ED Inpatient Service,HCL NURSING,HNSI0000895,581.51
Department of Health,Leicestershire Partnership NHS Trust,05/01/22,NURSE - BAND 5 - AGENCY,Langley Ward ED Inpatient Service,HCL NURSING,HNSI0000895,1466.59
Department of Health,Leicestershire Partnership NHS Trust,05/01/22,Nurse - Band 6 -Agency,AMH - Central Access Point,HCL NURSING,HNSI0000888,5643.37
Department of Health,Leicestershire Partnership NHS Trust,05/01/22,Nurse - Band 6 -Agency,Adult City East CMHT - Merlyn Vaz,HCL NURSING,HNSI0000888,1109.03
Department of Health,Leicestershire Partnership NHS Trust,05/01/22,Nurse - Band 6 -Agency,Adult County Charnwood CMHT - Loughborough Base,HCL NURSING,HNSI0000888,1348.16
Department of Health,Leicestershire Partnership NHS Trust,05/01/22,Nurse - Band 6 -Agency,Adult County West Leicestershire CMHT,HCL NURSING,HNSI0000888,1069.97
Department of Health,Leicestershire Partnership NHS Trust,05/01/22,NURSE - BAND 2 - AGENCY,Agnes Unit Management,HCL NURSING,HNSI0000888,20327.60
Department of Health,Leicestershire Partnership NHS Trust,05/01/22,NURSE - BAND 5 - AGENCY,Agnes Unit Management,HCL NURSING,HNSI0000888,19370.48
Department of Health,Leicestershire Partnership NHS Trust,05/01/22,NURSE - BAND 2 - AGENCY,Ashby Ward (Bradgate Unit),HCL NURSING,HNSI0000888,1427.88
Department of Health,Leicestershire Partnership NHS Trust,05/01/22,NURSE - BAND 5 - AGENCY,Ashby Ward (Bradgate Unit),HCL NURSING,HNSI0000888,4504.03
Department of Health,Leicestershire Partnership NHS Trust,05/01/22,NURSE - BAND 2 - AGENCY,Aston Ward (Bradgate Unit),HCL NURSING,HNSI0000888,3095.30
Department of Health,Leicestershire Partnership NHS Trust,05/01/22,NURSE - BAND 5 - AGENCY,Aston Ward (Bradgate Unit),HCL NURSING,HNSI0000888,10062.81
Department of Health,Leicestershire Partnership NHS Trust,05/01/22,NURSE - BAND 2 - AGENCY,Beaumont Ward - Bradgate Unit,HCL NURSING,HNSI0000888,2785.12
Department of Health,Leicestershire Partnership NHS Trust,05/01/22,NURSE - BAND 5 - AGENCY,Beaumont Ward - Bradgate Unit,HCL NURSING,HNSI0000888,4286.05
Department of Health,Leicestershire Partnership NHS Trust,05/01/22,NURSE - BAND 2 - AGENCY,Belvoir Psychiatric Intensive Care Unit,HCL NURSING,HNSI0000888,3963.73
Department of Health,Leicestershire Partnership NHS Trust,05/01/22,NURSE - BAND 5 - AGENCY,Belvoir Psychiatric Intensive Care Unit,HCL NURSING,HNSI0000888,5060.20
Department of Health,Leicestershire Partnership NHS Trust,05/01/22,NURSE - BAND 2 - AGENCY,Cedar (Willows),HCL NURSING,HNSI0000888,794.00
Department of Health,Leicestershire Partnership NHS Trust,05/01/22,NURSE - BAND 5 - AGENCY,Cedar (Willows),HCL NURSING,HNSI0000888,532.35
Department of Health,Leicestershire Partnership NHS Trust,05/01/22,Nurse - Band 6 -Agency,City West CMHT MHSOP,HCL NURSING,HNSI0000888,1902.22
Department of Health,Leicestershire Partnership NHS Trust,05/01/22,NURSE - BAND 2 - AGENCY,Coleman Ward,HCL NURSING,HNSI0000888,680.30
Department of Health,Leicestershire Partnership NHS Trust,05/01/22,NURSE - BAND 5 - AGENCY,Coleman Ward,HCL NURSING,HNSI0000888,8379.78
Department of Health,Leicestershire Partnership NHS Trust,05/01/22,NURSE - BAND 5 - AGENCY,Crisis Resolution,HCL NURSING,HNSI0000888,443.46
Department of Health,Leicestershire Partnership NHS Trust,05/01/22,Nurse - Band 6 -Agency,Crisis Resolution,HCL NURSING,HNSI0000888,1181.57
Department of Health,Leicestershire Partnership NHS Trust,05/01/22,NURSE - BAND 2 - AGENCY,Griffin Ward (HPC),HCL NURSING,HNSI0000888,1651.46
Department of Health,Leicestershire Partnership NHS Trust,05/01/22,NURSE - BAND 5 - AGENCY,Griffin Ward (HPC),HCL NURSING,HNSI0000888,6328.13
Department of Health,Leicestershire Partnership NHS Trust,05/01/22,NURSE - BAND 2 - AGENCY,Heather Ward,HCL NURSING,HNSI0000888,2524.30
Department of Health,Leicestershire Partnership NHS Trust,05/01/22,NURSE - BAND 5 - AGENCY,Heather Ward,HCL NURSING,HNSI0000888,4228.94
Department of Health,Leicestershire Partnership NHS Trust,05/01/22,NURSE - BAND 2 - AGENCY,Kirby Ward,HCL NURSING,HNSI0000888,601.49
Department of Health,Leicestershire Partnership NHS Trust,05/01/22,NURSE - BAND 5 - AGENCY,Kirby Ward,HCL NURSING,HNSI0000888,2145.22
Department of Health,Leicestershire Partnership NHS Trust,05/01/22,NURSE - BAND 2 - AGENCY,Maple Ward,HCL NURSING,HNSI0000888,418.99
Department of Health,Leicestershire Partnership NHS Trust,05/01/22,NURSE - BAND 2 - AGENCY,Mill Lodge,HCL NURSING,HNSI0000888,4528.43
Department of Health,Leicestershire Partnership NHS Trust,05/01/22,NURSE - BAND 5 - AGENCY,Mill Lodge,HCL NURSING,HNSI0000888,1453.65
Department of Health,Leicestershire Partnership NHS Trust,05/01/22,NURSE - BAND 2 - AGENCY,Phoenix Ward (HPC),HCL NURSING,HNSI0000888,1798.68
Department of Health,Leicestershire Partnership NHS Trust,05/01/22,NURSE - BAND 5 - AGENCY,Phoenix Ward (HPC),HCL NURSING,HNSI0000888,2855.20
Department of Health,Leicestershire Partnership NHS Trust,05/01/22,NURSE - BAND 5 - AGENCY,Place Of Safety Assessment Unit,HCL NURSING,HNSI0000888,2468.13
Department of Health,Leicestershire Partnership NHS Trust,05/01/22,NURSE - BAND 2 - AGENCY,Stewart House,HCL NURSING,HNSI0000888,1145.60
Department of Health,Leicestershire Partnership NHS Trust,05/01/22,NURSE - BAND 5 - AGENCY,Stewart House,HCL NURSING,HNSI0000888,536.04
Department of Health,Leicestershire Partnership NHS Trust,05/01/22,NURSE - BAND 2 - AGENCY,Thornton Ward - Bradgate Unit,HCL NURSING,HNSI0000888,174.73
Department of Health,Leicestershire Partnership NHS Trust,05/01/22,NURSE - BAND 5 - AGENCY,Thornton Ward - Bradgate Unit,HCL NURSING,HNSI0000888,899.08
Department of Health,Leicestershire Partnership NHS Trust,05/01/22,NURSE - BAND 2 - AGENCY,Urgent Care Hub,HCL NURSING,HNSI0000888,700.01
Department of Health,Leicestershire Partnership NHS Trust,05/01/22,NURSE - BAND 2 - AGENCY,Watermead Ward (Bradgate Unit),HCL NURSING,HNSI0000888,5236.37
Department of Health,Leicestershire Partnership NHS Trust,05/01/22,NURSE - BAND 5 - AGENCY,Watermead Ward (Bradgate Unit),HCL NURSING,HNSI0000888,5173.02
Department of Health,Leicestershire Partnership NHS Trust,05/01/22,NURSE - BAND 2 - AGENCY,Welford Ward,HCL NURSING,HNSI0000888,527.58
Department of Health,Leicestershire Partnership NHS Trust,05/01/22,Nurse - Band 6 -Agency,AMH - Central Access Point,HCL NURSING,HNSI0000893,4329.48
Department of Health,Leicestershire Partnership NHS Trust,05/01/22,Nurse - Band 6 -Agency,Adult City East CMHT - Merlyn Vaz,HCL NURSING,HNSI0000893,837.00
Department of Health,Leicestershire Partnership NHS Trust,05/01/22,Nurse - Band 6 -Agency,Adult County West Leicestershire CMHT,HCL NURSING,HNSI0000893,1069.97
Department of Health,Leicestershire Partnership NHS Trust,05/01/22,NURSE - BAND 2 - AGENCY,Agnes Unit Management,HCL NURSING,HNSI0000893,20308.34
Department of Health,Leicestershire Partnership NHS Trust,05/01/22,NURSE - BAND 5 - AGENCY,Agnes Unit Management,HCL NURSING,HNSI0000893,15566.75
Department of Health,Leicestershire Partnership NHS Trust,05/01/22,NURSE - BAND 2 - AGENCY,Ashby Ward (Bradgate Unit),HCL NURSING,HNSI0000893,974.58
Department of Health,Leicestershire Partnership NHS Trust,05/01/22,NURSE - BAND 5 - AGENCY,Ashby Ward (Bradgate Unit),HCL NURSING,HNSI0000893,3549.14
Department of Health,Leicestershire Partnership NHS Trust,05/01/22,NURSE - BAND 2 - AGENCY,Aston Ward (Bradgate Unit),HCL NURSING,HNSI0000893,2662.16
Department of Health,Leicestershire Partnership NHS Trust,05/01/22,NURSE - BAND 5 - AGENCY,Aston Ward (Bradgate Unit),HCL NURSING,HNSI0000893,6490.15
Department of Health,Leicestershire Partnership NHS Trust,05/01/22,NURSE - BAND 2 - AGENCY,Beaumont Ward - Bradgate Unit,HCL NURSING,HNSI0000893,3487.75
Department of Health,Leicestershire Partnership NHS Trust,05/01/22,NURSE - BAND 5 - AGENCY,Beaumont Ward - Bradgate Unit,HCL NURSING,HNSI0000893,4808.28
Department of Health,Leicestershire Partnership NHS Trust,05/01/22,NURSE - BAND 2 - AGENCY,Belvoir Psychiatric Intensive Care Unit,HCL NURSING,HNSI0000893,3992.66
Department of Health,Leicestershire Partnership NHS Trust,05/01/22,NURSE - BAND 5 - AGENCY,Belvoir Psychiatric Intensive Care Unit,HCL NURSING,HNSI0000893,4947.23
Department of Health,Leicestershire Partnership NHS Trust,05/01/22,NURSE - BAND 2 - AGENCY,Cedar (Willows),HCL NURSING,HNSI0000893,1268.30
Department of Health,Leicestershire Partnership NHS Trust,05/01/22,NURSE - BAND 5 - AGENCY,Cedar (Willows),HCL NURSING,HNSI0000893,1165.50
Department of Health,Leicestershire Partnership NHS Trust,05/01/22,Nurse - Band 6 -Agency,City West CMHT MHSOP,HCL NURSING,HNSI0000893,1046.25
Department of Health,Leicestershire Partnership NHS Trust,05/01/22,NURSE - BAND 2 - AGENCY,Coleman Ward,HCL NURSING,HNSI0000893,540.39
Department of Health,Leicestershire Partnership NHS Trust,05/01/22,NURSE - BAND 5 - AGENCY,Coleman Ward,HCL NURSING,HNSI0000893,6913.37
Department of Health,Leicestershire Partnership NHS Trust,05/01/22,NURSE - BAND 2 - AGENCY,Griffin Ward (HPC),HCL NURSING,HNSI0000893,4770.13
Department of Health,Leicestershire Partnership NHS Trust,05/01/22,NURSE - BAND 5 - AGENCY,Griffin Ward (HPC),HCL NURSING,HNSI0000893,7713.94
Department of Health,Leicestershire Partnership NHS Trust,05/01/22,NURSE - BAND 2 - AGENCY,Heather Ward,HCL NURSING,HNSI0000893,1909.74
Department of Health,Leicestershire Partnership NHS Trust,05/01/22,NURSE - BAND 5 - AGENCY,Heather Ward,HCL NURSING,HNSI0000893,6849.47
Department of Health,Leicestershire Partnership NHS Trust,05/01/22,NURSE - BAND 2 - AGENCY,Kirby Ward,HCL NURSING,HNSI0000893,1278.70
Department of Health,Leicestershire Partnership NHS Trust,05/01/22,NURSE - BAND 5 - AGENCY,Kirby Ward,HCL NURSING,HNSI0000893,1616.57
Department of Health,Leicestershire Partnership NHS Trust,05/01/22,NURSE - BAND 2 - AGENCY,Maple Ward,HCL NURSING,HNSI0000893,174.73
Department of Health,Leicestershire Partnership NHS Trust,05/01/22,NURSE - BAND 5 - AGENCY,Maple Ward,HCL NURSING,HNSI0000893,449.54
Department of Health,Leicestershire Partnership NHS Trust,05/01/22,Nurse - Band 6 -Agency,Mental Health Liaison Team,HCL NURSING,HNSI0000893,1344.39
Department of Health,Leicestershire Partnership NHS Trust,05/01/22,NURSE - BAND 2 - AGENCY,Mill Lodge,HCL NURSING,HNSI0000893,4725.90
Department of Health,Leicestershire Partnership NHS Trust,05/01/22,NURSE - BAND 5 - AGENCY,Mill Lodge,HCL NURSING,HNSI0000893,3006.95
Department of Health,Leicestershire Partnership NHS Trust,05/01/22,NURSE - BAND 2 - AGENCY,Phoenix Ward (HPC),HCL NURSING,HNSI0000893,5389.77
Department of Health,Leicestershire Partnership NHS Trust,05/01/22,NURSE - BAND 5 - AGENCY,Phoenix Ward (HPC),HCL NURSING,HNSI0000893,1863.47
Department of Health,Leicestershire Partnership NHS Trust,05/01/22,NURSE - BAND 2 - AGENCY,Place Of Safety Assessment Unit,HCL NURSING,HNSI0000893,459.24
Department of Health,Leicestershire Partnership NHS Trust,05/01/22,NURSE - BAND 5 - AGENCY,Place Of Safety Assessment Unit,HCL NURSING,HNSI0000893,3858.66
Department of Health,Leicestershire Partnership NHS Trust,05/01/22,NURSE - BAND 2 - AGENCY,Stewart House,HCL NURSING,HNSI0000893,464.48
Department of Health,Leicestershire Partnership NHS Trust,05/01/22,NURSE - BAND 5 - AGENCY,Stewart House,HCL NURSING,HNSI0000893,593.58
Department of Health,Leicestershire Partnership NHS Trust,05/01/22,NURSE - BAND 2 - AGENCY,The Grange,HCL NURSING,HNSI0000893,370.65
Department of Health,Leicestershire Partnership NHS Trust,05/01/22,NURSE - BAND 2 - AGENCY,Thornton Ward - Bradgate Unit,HCL NURSING,HNSI0000893,3381.18
Department of Health,Leicestershire Partnership NHS Trust,05/01/22,NURSE - BAND 2 - AGENCY,Urgent Care Hub,HCL NURSING,HNSI0000893,723.77
Department of Health,Leicestershire Partnership NHS Trust,05/01/22,NURSE - BAND 2 - AGENCY,Watermead Ward (Bradgate Unit),HCL NURSING,HNSI0000893,5245.01
Department of Health,Leicestershire Partnership NHS Trust,05/01/22,NURSE - BAND 5 - AGENCY,Watermead Ward (Bradgate Unit),HCL NURSING,HNSI0000893,9405.14
Department of Health,Leicestershire Partnership NHS Trust,05/01/22,NURSE - BAND 2 - AGENCY,Welford Ward,HCL NURSING,HNSI0000893,1292.41
Department of Health,Leicestershire Partnership NHS Trust,05/01/22,NURSE - BAND 5 - AGENCY,Welford Ward,HCL NURSING,HNSI0000893,384.87
Department of Health,Leicestershire Partnership NHS Trust,05/01/22,External Consultancy Fees,Enabling Non-Departmental,NHS MIDLANDS & LANCS CSU,7312322363,47700.00
Department of Health,Leicestershire Partnership NHS Trust,06/01/22,Trade_Drs_LT1y -Charitable  Funds Contra Account,Balance Sheet Collection,C HENRY & SONS,12315,43343.28
Department of Health,Leicestershire Partnership NHS Trust,06/01/22,Payroll Deductions -Salary Sacrifice Cars Scheme,Balance Sheet Collection,TUSKER,54503,34848.67
Department of Health,Leicestershire Partnership NHS Trust,06/01/22,Rent,NSPCC Training Cente,NSPCC,119472,28752.40
Department of Health,Leicestershire Partnership NHS Trust,06/01/22,NURSE - BAND 2 - AGENCY,Beechwood Ward,HCL NURSING,HNSI0000889,5775.22
Department of Health,Leicestershire Partnership NHS Trust,06/01/22,NURSE - BAND 5 - AGENCY,Beechwood Ward,HCL NURSING,HNSI0000889,3218.25
Department of Health,Leicestershire Partnership NHS Trust,06/01/22,NURSE - BAND 3 - AGENCY,CHS Phlebotomy Service,HCL NURSING,HNSI0000889,331.50
Department of Health,Leicestershire Partnership NHS Trust,06/01/22,NURSE - BAND 5 - AGENCY,City Planned Care - East,HCL NURSING,HNSI0000889,13172.05
Department of Health,Leicestershire Partnership NHS Trust,06/01/22,NURSE - BAND 5 - AGENCY,City Planned Care - West,HCL NURSING,HNSI0000889,15556.45
Department of Health,Leicestershire Partnership NHS Trust,06/01/22,NURSE - BAND 2 - AGENCY,Clarendon Ward,HCL NURSING,HNSI0000889,4622.52
Department of Health,Leicestershire Partnership NHS Trust,06/01/22,NURSE - BAND 5 - AGENCY,Clarendon Ward,HCL NURSING,HNSI0000889,5366.43
Department of Health,Leicestershire Partnership NHS Trust,06/01/22,NURSE - BAND 2 - AGENCY,Coalville Snibston Ward,HCL NURSING,HNSI0000889,2532.27
Department of Health,Leicestershire Partnership NHS Trust,06/01/22,NURSE - BAND 5 - AGENCY,Coalville Snibston Ward,HCL NURSING,HNSI0000889,3369.35
Department of Health,Leicestershire Partnership NHS Trust,06/01/22,NURSE - BAND 2 - AGENCY,Coalville Ward 2,HCL NURSING,HNSI0000889,240.34
Department of Health,Leicestershire Partnership NHS Trust,06/01/22,NURSE - BAND 5 - AGENCY,Coalville Ward 2,HCL NURSING,HNSI0000889,2058.09
Department of Health,Leicestershire Partnership NHS Trust,06/01/22,NURSE - BAND 2 - AGENCY,Coalville Ward 4,HCL NURSING,HNSI0000889,262.38
Department of Health,Leicestershire Partnership NHS Trust,06/01/22,NURSE - BAND 2 - AGENCY,Dalgliesh Ward,HCL NURSING,HNSI0000889,2746.24
Department of Health,Leicestershire Partnership NHS Trust,06/01/22,NURSE - BAND 5 - AGENCY,Dalgliesh Ward,HCL NURSING,HNSI0000889,772.10
Department of Health,Leicestershire Partnership NHS Trust,06/01/22,NURSE - BAND 2 - AGENCY,H&B Comm Hosp East Ward,HCL NURSING,HNSI0000889,4402.05
Department of Health,Leicestershire Partnership NHS Trust,06/01/22,NURSE - BAND 5 - AGENCY,H&B Comm Hosp East Ward,HCL NURSING,HNSI0000889,7016.31
Department of Health,Leicestershire Partnership NHS Trust,06/01/22,NURSE - BAND 2 - AGENCY,H&B Comm Hosp North Ward,HCL NURSING,HNSI0000889,3532.23
Department of Health,Leicestershire Partnership NHS Trust,06/01/22,NURSE - BAND 5 - AGENCY,H&B Comm Hosp North Ward,HCL NURSING,HNSI0000889,1115.51
Department of Health,Leicestershire Partnership NHS Trust,06/01/22,NURSE - BAND 2 - AGENCY,Lough Swithland Ward,HCL NURSING,HNSI0000889,1499.33
Department of Health,Leicestershire Partnership NHS Trust,06/01/22,NURSE - BAND 5 - AGENCY,Lough Swithland Ward,HCL NURSING,HNSI0000889,3113.60
Department of Health,Leicestershire Partnership NHS Trust,06/01/22,NURSE - BAND 2 - AGENCY,Rutland Ward Nursing,HCL NURSING,HNSI0000889,2497.29
Department of Health,Leicestershire Partnership NHS Trust,06/01/22,NURSE - BAND 5 - AGENCY,Rutland Ward Nursing,HCL NURSING,HNSI0000889,911.40
Department of Health,Leicestershire Partnership NHS Trust,06/01/22,NURSE - BAND 2 - AGENCY,St Lukes Stroke Ward,HCL NURSING,HNSI0000889,1664.68
Department of Health,Leicestershire Partnership NHS Trust,06/01/22,NURSE - BAND 5 - AGENCY,St Lukes Stroke Ward,HCL NURSING,HNSI0000889,1158.14
Department of Health,Leicestershire Partnership NHS Trust,06/01/22,NURSE - BAND 2 - AGENCY,St Lukes Ward 3,HCL NURSING,HNSI0000889,1355.34
Department of Health,Leicestershire Partnership NHS Trust,06/01/22,NURSE - BAND 2 - AGENCY,Wakerley Ward,HCL NURSING,HNSI0000889,2540.17
Department of Health,Leicestershire Partnership NHS Trust,06/01/22,NURSE - BAND 5 - AGENCY,Wakerley Ward,HCL NURSING,HNSI0000889,5979.57
Department of Health,Leicestershire Partnership NHS Trust,06/01/22,External Data Processing / Storage,Records & information Governance,H COATES LTD/TA C&V DATA,4007724,31817.52
Department of Health,Leicestershire Partnership NHS Trust,06/01/22,NURSE - BAND 2 - AGENCY,Beechwood Ward,HCL NURSING,HNSI0000894,4966.76
Department of Health,Leicestershire Partnership NHS Trust,06/01/22,NURSE - BAND 5 - AGENCY,Beechwood Ward,HCL NURSING,HNSI0000894,726.47
Department of Health,Leicestershire Partnership NHS Trust,06/01/22,NURSE - BAND 5 - AGENCY,City Planned Care - East,HCL NURSING,HNSI0000894,11047.75
Department of Health,Leicestershire Partnership NHS Trust,06/01/22,NURSE - BAND 5 - AGENCY,City Planned Care - West,HCL NURSING,HNSI0000894,15616.93
Department of Health,Leicestershire Partnership NHS Trust,06/01/22,NURSE - BAND 2 - AGENCY,Clarendon Ward,HCL NURSING,HNSI0000894,3458.09
Department of Health,Leicestershire Partnership NHS Trust,06/01/22,NURSE - BAND 5 - AGENCY,Clarendon Ward,HCL NURSING,HNSI0000894,2541.28
Department of Health,Leicestershire Partnership NHS Trust,06/01/22,NURSE - BAND 2 - AGENCY,Coalville Snibston Ward,HCL NURSING,HNSI0000894,901.33
Department of Health,Leicestershire Partnership NHS Trust,06/01/22,NURSE - BAND 5 - AGENCY,Coalville Snibston Ward,HCL NURSING,HNSI0000894,4179.94
Department of Health,Leicestershire Partnership NHS Trust,06/01/22,NURSE - BAND 2 - AGENCY,Coalville Ward 2,HCL NURSING,HNSI0000894,601.25
Department of Health,Leicestershire Partnership NHS Trust,06/01/22,NURSE - BAND 5 - AGENCY,Coalville Ward 2,HCL NURSING,HNSI0000894,941.56
Department of Health,Leicestershire Partnership NHS Trust,06/01/22,NURSE - BAND 2 - AGENCY,Dalgliesh Ward,HCL NURSING,HNSI0000894,1950.51
Department of Health,Leicestershire Partnership NHS Trust,06/01/22,NURSE - BAND 2 - AGENCY,H&B Comm Hosp East Ward,HCL NURSING,HNSI0000894,5244.13
Department of Health,Leicestershire Partnership NHS Trust,06/01/22,NURSE - BAND 5 - AGENCY,H&B Comm Hosp East Ward,HCL NURSING,HNSI0000894,2827.97
Department of Health,Leicestershire Partnership NHS Trust,06/01/22,NURSE - BAND 2 - AGENCY,H&B Comm Hosp North Ward,HCL NURSING,HNSI0000894,2578.66
Department of Health,Leicestershire Partnership NHS Trust,06/01/22,NURSE - BAND 5 - AGENCY,H&B Comm Hosp North Ward,HCL NURSING,HNSI0000894,2048.64
Department of Health,Leicestershire Partnership NHS Trust,06/01/22,NURSE - BAND 2 - AGENCY,Lough Swithland Ward,HCL NURSING,HNSI0000894,2352.58
Department of Health,Leicestershire Partnership NHS Trust,06/01/22,NURSE - BAND 5 - AGENCY,Lough Swithland Ward,HCL NURSING,HNSI0000894,2580.89
Department of Health,Leicestershire Partnership NHS Trust,06/01/22,NURSE - BAND 2 - AGENCY,Rutland Ward Nursing,HCL NURSING,HNSI0000894,491.15
Department of Health,Leicestershire Partnership NHS Trust,06/01/22,NURSE - BAND 5 - AGENCY,Rutland Ward Nursing,HCL NURSING,HNSI0000894,825.31
Department of Health,Leicestershire Partnership NHS Trust,06/01/22,NURSE - BAND 2 - AGENCY,St Lukes Stroke Ward,HCL NURSING,HNSI0000894,847.23
Department of Health,Leicestershire Partnership NHS Trust,06/01/22,NURSE - BAND 5 - AGENCY,St Lukes Stroke Ward,HCL NURSING,HNSI0000894,723.18
Department of Health,Leicestershire Partnership NHS Trust,06/01/22,NURSE - BAND 2 - AGENCY,St Lukes Ward 3,HCL NURSING,HNSI0000894,1110.09
Department of Health,Leicestershire Partnership NHS Trust,06/01/22,NURSE - BAND 5 - AGENCY,St Lukes Ward 3,HCL NURSING,HNSI0000894,419.10
Department of Health,Leicestershire Partnership NHS Trust,06/01/22,NURSE - BAND 2 - AGENCY,Wakerley Ward,HCL NURSING,HNSI0000894,6214.61
Department of Health,Leicestershire Partnership NHS Trust,06/01/22,NURSE - BAND 5 - AGENCY,Wakerley Ward,HCL NURSING,HNSI0000894,5530.66
Department of Health,Leicestershire Partnership NHS Trust,07/01/22,Building & Engineering Equipment Equipment/Materials,"Hinckley and Bosworth Community Hospital (Sunnyside) (P133, LPT)",PINPOINT LTD,63685,94234.80
Department of Health,Leicestershire Partnership NHS Trust,10/01/22,Crs_NHS_LT1y -Resus Inventory Supplied.,Balance Sheet Collection,SUPPLY CHAIN CO LTD,1122185541,26715.58
Department of Health,Leicestershire Partnership NHS Trust,10/01/22,WIP Project Not in BS - Information Technology,Work in Progress,DELL COMPUTERS,7402774183,39300.00
Department of Health,Leicestershire Partnership NHS Trust,10/01/22,GP IT Expenditure,Area Team,DELL COMPUTERS,7402771672,30420.00
Department of Health,Leicestershire Partnership NHS Trust,10/01/22,GP IT Expenditure,Area Team,DELL COMPUTERS,7402771673,28020.00
Department of Health,Leicestershire Partnership NHS Trust,10/01/22,GP IT Expenditure,Area Team,DELL COMPUTERS,7402771499,27459.60
Department of Health,Leicestershire Partnership NHS Trust,10/01/22,GP IT Expenditure,Area Team,DELL COMPUTERS,7402771465,28020.00
Department of Health,Leicestershire Partnership NHS Trust,10/01/22,Computer Consumables,HIS Services,DELL COMPUTERS,7402771465,2400.00
Department of Health,Leicestershire Partnership NHS Trust,10/01/22,GP IT Expenditure,Area Team,DELL COMPUTERS,7402771172,30396.00
Department of Health,Leicestershire Partnership NHS Trust,10/01/22,Nurse - Band 6 -Agency,AMH - Central Access Point,HCL NURSING,HNSI0000898,2355.15
Department of Health,Leicestershire Partnership NHS Trust,10/01/22,Nurse - Band 6 -Agency,Adult County Charnwood CMHT - Loughborough Base,HCL NURSING,HNSI0000898,1069.97
Department of Health,Leicestershire Partnership NHS Trust,10/01/22,NURSE - BAND 2 - AGENCY,Agnes Unit Management,HCL NURSING,HNSI0000898,30430.88
Department of Health,Leicestershire Partnership NHS Trust,10/01/22,NURSE - BAND 5 - AGENCY,Agnes Unit Management,HCL NURSING,HNSI0000898,19812.35
Department of Health,Leicestershire Partnership NHS Trust,10/01/22,NURSE - BAND 2 - AGENCY,Ashby Ward (Bradgate Unit),HCL NURSING,HNSI0000898,398.32
Department of Health,Leicestershire Partnership NHS Trust,10/01/22,NURSE - BAND 5 - AGENCY,Ashby Ward (Bradgate Unit),HCL NURSING,HNSI0000898,3983.81
Department of Health,Leicestershire Partnership NHS Trust,10/01/22,NURSE - BAND 2 - AGENCY,Aston Ward (Bradgate Unit),HCL NURSING,HNSI0000898,1992.39
Department of Health,Leicestershire Partnership NHS Trust,10/01/22,NURSE - BAND 5 - AGENCY,Aston Ward (Bradgate Unit),HCL NURSING,HNSI0000898,9419.54
Department of Health,Leicestershire Partnership NHS Trust,10/01/22,NURSE - BAND 2 - AGENCY,Beaumont Ward - Bradgate Unit,HCL NURSING,HNSI0000898,4067.77
Department of Health,Leicestershire Partnership NHS Trust,10/01/22,NURSE - BAND 5 - AGENCY,Beaumont Ward - Bradgate Unit,HCL NURSING,HNSI0000898,3946.04
Department of Health,Leicestershire Partnership NHS Trust,10/01/22,NURSE - BAND 2 - AGENCY,Belvoir Psychiatric Intensive Care Unit,HCL NURSING,HNSI0000898,5738.01
Department of Health,Leicestershire Partnership NHS Trust,10/01/22,NURSE - BAND 5 - AGENCY,Belvoir Psychiatric Intensive Care Unit,HCL NURSING,HNSI0000898,2829.20
Department of Health,Leicestershire Partnership NHS Trust,10/01/22,NURSE - BAND 2 - AGENCY,Cedar (Willows),HCL NURSING,HNSI0000898,1456.27
Department of Health,Leicestershire Partnership NHS Trust,10/01/22,NURSE - BAND 5 - AGENCY,Cedar (Willows),HCL NURSING,HNSI0000898,650.65
Department of Health,Leicestershire Partnership NHS Trust,10/01/22,NURSE - BAND 2 - AGENCY,Coleman Ward,HCL NURSING,HNSI0000898,1058.02
Department of Health,Leicestershire Partnership NHS Trust,10/01/22,NURSE - BAND 5 - AGENCY,Coleman Ward,HCL NURSING,HNSI0000898,8152.63
Department of Health,Leicestershire Partnership NHS Trust,10/01/22,NURSE - BAND 5 - AGENCY,Crisis Resolution,HCL NURSING,HNSI0000898,886.92
Department of Health,Leicestershire Partnership NHS Trust,10/01/22,NURSE - BAND 2 - AGENCY,Griffin Ward (HPC),HCL NURSING,HNSI0000898,1578.88
Department of Health,Leicestershire Partnership NHS Trust,10/01/22,NURSE - BAND 5 - AGENCY,Griffin Ward (HPC),HCL NURSING,HNSI0000898,6607.63
Department of Health,Leicestershire Partnership NHS Trust,10/01/22,NURSE - BAND 2 - AGENCY,Heather Ward,HCL NURSING,HNSI0000898,3733.48
Department of Health,Leicestershire Partnership NHS Trust,10/01/22,NURSE - BAND 5 - AGENCY,Heather Ward,HCL NURSING,HNSI0000898,3920.43
Department of Health,Leicestershire Partnership NHS Trust,10/01/22,NURSE - BAND 2 - AGENCY,Kirby Ward,HCL NURSING,HNSI0000898,730.54
Department of Health,Leicestershire Partnership NHS Trust,10/01/22,NURSE - BAND 5 - AGENCY,Kirby Ward,HCL NURSING,HNSI0000898,2158.50
Department of Health,Leicestershire Partnership NHS Trust,10/01/22,NURSE - BAND 2 - AGENCY,Maple Ward,HCL NURSING,HNSI0000898,2845.29
Department of Health,Leicestershire Partnership NHS Trust,10/01/22,Nurse - Band 6 -Agency,Mental Health Liaison Team,HCL NURSING,HNSI0000898,3191.76
Department of Health,Leicestershire Partnership NHS Trust,10/01/22,NURSE - BAND 2 - AGENCY,Mill Lodge,HCL NURSING,HNSI0000898,6489.74
Department of Health,Leicestershire Partnership NHS Trust,10/01/22,NURSE - BAND 5 - AGENCY,Mill Lodge,HCL NURSING,HNSI0000898,4258.19
Department of Health,Leicestershire Partnership NHS Trust,10/01/22,NURSE - BAND 2 - AGENCY,Phoenix Ward (HPC),HCL NURSING,HNSI0000898,2453.18
Department of Health,Leicestershire Partnership NHS Trust,10/01/22,NURSE - BAND 5 - AGENCY,Phoenix Ward (HPC),HCL NURSING,HNSI0000898,2596.93
Department of Health,Leicestershire Partnership NHS Trust,10/01/22,NURSE - BAND 5 - AGENCY,Place Of Safety Assessment Unit,HCL NURSING,HNSI0000898,4530.35
Department of Health,Leicestershire Partnership NHS Trust,10/01/22,NURSE - BAND 2 - AGENCY,Stewart House,HCL NURSING,HNSI0000898,300.95
Department of Health,Leicestershire Partnership NHS Trust,10/01/22,NURSE - BAND 5 - AGENCY,Stewart House,HCL NURSING,HNSI0000898,2172.00
Department of Health,Leicestershire Partnership NHS Trust,10/01/22,NURSE - BAND 2 - AGENCY,The Grange,HCL NURSING,HNSI0000898,419.06
Department of Health,Leicestershire Partnership NHS Trust,10/01/22,NURSE - BAND 5 - AGENCY,Thornton Ward - Bradgate Unit,HCL NURSING,HNSI0000898,990.63
Department of Health,Leicestershire Partnership NHS Trust,10/01/22,NURSE - BAND 2 - AGENCY,Watermead Ward (Bradgate Unit),HCL NURSING,HNSI0000898,7861.37
Department of Health,Leicestershire Partnership NHS Trust,10/01/22,NURSE - BAND 5 - AGENCY,Watermead Ward (Bradgate Unit),HCL NURSING,HNSI0000898,7653.77
Department of Health,Leicestershire Partnership NHS Trust,10/01/22,NURSE - BAND 2 - AGENCY,Welford Ward,HCL NURSING,HNSI0000898,444.41
Department of Health,Leicestershire Partnership NHS Trust,10/01/22,NURSE - BAND 5 - AGENCY,Welford Ward,HCL NURSING,HNSI0000898,384.87
Department of Health,Leicestershire Partnership NHS Trust,10/01/22,NURSE - BAND 2 - AGENCY,CAMHS ED Team,HCL NURSING,HNSI0000900,2613.10
Department of Health,Leicestershire Partnership NHS Trust,10/01/22,NURSE - BAND 2 - AGENCY,CAMHS Inpatient Service,HCL NURSING,HNSI0000900,19956.17
Department of Health,Leicestershire Partnership NHS Trust,10/01/22,NURSE - BAND 5 - AGENCY,CAMHS Inpatient Service,HCL NURSING,HNSI0000900,938.89
Department of Health,Leicestershire Partnership NHS Trust,10/01/22,NURSE - BAND 2 - AGENCY,CAMHS Outpatients,HCL NURSING,HNSI0000900,1444.46
Department of Health,Leicestershire Partnership NHS Trust,10/01/22,Nurse - Band 6 -Agency,CAMHS Waiting List Monies,HCL NURSING,HNSI0000900,1494.70
Department of Health,Leicestershire Partnership NHS Trust,10/01/22,NURSE - BAND 2 - AGENCY,Langley Ward ED Inpatient Service,HCL NURSING,HNSI0000900,2889.86
Department of Health,Leicestershire Partnership NHS Trust,10/01/22,NURSE - BAND 5 - AGENCY,Langley Ward ED Inpatient Service,HCL NURSING,HNSI0000900,2465.52
Department of Health,Leicestershire Partnership NHS Trust,10/01/22,Nurse - Band 6 -Agency,CAMHS HUB / CAP,HCL SOCIAL CARE,HWSI0000983,7919.18
Department of Health,Leicestershire Partnership NHS Trust,10/01/22,Nurse - Band 6 -Agency,CAMHS Learning Disabilities and Outreach Team,HCL SOCIAL CARE,HWSI0000983,498.40
Department of Health,Leicestershire Partnership NHS Trust,10/01/22,Nurse - Band 6 -Agency,CAMHS Waiting List Monies,HCL SOCIAL CARE,HWSI0000983,14798.13
Department of Health,Leicestershire Partnership NHS Trust,10/01/22,Nurse - Band 6 -Agency,Crisis Response and Home Treatment,HCL SOCIAL CARE,HWSI0000983,2048.18
Department of Health,Leicestershire Partnership NHS Trust,11/01/22,Healthcare Services / Recharges from Non-NHS Bodies,CAMHS Outpatients,HEALIOS LTD,2299,28080.00
Department of Health,Leicestershire Partnership NHS Trust,11/01/22,Payroll Deductions -Home Electronics 63 Dec 21,Balance Sheet Collection,SME HCI LTD,137825,26486.20
Department of Health,Leicestershire Partnership NHS Trust,11/01/22,WIP Project Not in BS - Information Technology,Work in Progress,DELL COMPUTERS,7402774361,28320.00
Department of Health,Leicestershire Partnership NHS Trust,11/01/22,WIP Project Not in BS - Information Technology,Work in Progress,DELL COMPUTERS,7402774577,59205.36
Department of Health,Leicestershire Partnership NHS Trust,11/01/22,NURSE - BAND 2 - AGENCY,Beechwood Ward,HCL NURSING,HNSI0000899,1833.71
Department of Health,Leicestershire Partnership NHS Trust,11/01/22,NURSE - BAND 5 - AGENCY,Beechwood Ward,HCL NURSING,HNSI0000899,5327.34
Department of Health,Leicestershire Partnership NHS Trust,11/01/22,NURSE - BAND 3 - AGENCY,CHS Phlebotomy Service,HCL NURSING,HNSI0000899,278.60
Department of Health,Leicestershire Partnership NHS Trust,11/01/22,NURSE - BAND 5 - AGENCY,City Planned Care - East,HCL NURSING,HNSI0000899,9508.80
Department of Health,Leicestershire Partnership NHS Trust,11/01/22,NURSE - BAND 5 - AGENCY,City Planned Care - West,HCL NURSING,HNSI0000899,10544.47
Department of Health,Leicestershire Partnership NHS Trust,11/01/22,NURSE - BAND 2 - AGENCY,Clarendon Ward,HCL NURSING,HNSI0000899,2046.25
Department of Health,Leicestershire Partnership NHS Trust,11/01/22,NURSE - BAND 5 - AGENCY,Clarendon Ward,HCL NURSING,HNSI0000899,7220.75
Department of Health,Leicestershire Partnership NHS Trust,11/01/22,NURSE - BAND 2 - AGENCY,Coalville Snibston Ward,HCL NURSING,HNSI0000899,1228.28
Department of Health,Leicestershire Partnership NHS Trust,11/01/22,NURSE - BAND 5 - AGENCY,Coalville Snibston Ward,HCL NURSING,HNSI0000899,4092.24
Department of Health,Leicestershire Partnership NHS Trust,11/01/22,NURSE - BAND 2 - AGENCY,Coalville Ward 2,HCL NURSING,HNSI0000899,426.52
Department of Health,Leicestershire Partnership NHS Trust,11/01/22,NURSE - BAND 5 - AGENCY,Coalville Ward 2,HCL NURSING,HNSI0000899,772.10
Department of Health,Leicestershire Partnership NHS Trust,11/01/22,NURSE - BAND 2 - AGENCY,Dalgliesh Ward,HCL NURSING,HNSI0000899,714.18
Department of Health,Leicestershire Partnership NHS Trust,11/01/22,NURSE - BAND 2 - AGENCY,H&B Comm Hosp East Ward,HCL NURSING,HNSI0000899,4178.86
Department of Health,Leicestershire Partnership NHS Trust,11/01/22,NURSE - BAND 5 - AGENCY,H&B Comm Hosp East Ward,HCL NURSING,HNSI0000899,7029.01
Department of Health,Leicestershire Partnership NHS Trust,11/01/22,NURSE - BAND 2 - AGENCY,H&B Comm Hosp North Ward,HCL NURSING,HNSI0000899,5602.42
Department of Health,Leicestershire Partnership NHS Trust,11/01/22,NURSE - BAND 5 - AGENCY,H&B Comm Hosp North Ward,HCL NURSING,HNSI0000899,2929.35
Department of Health,Leicestershire Partnership NHS Trust,11/01/22,NURSE - BAND 2 - AGENCY,Lough Swithland Ward,HCL NURSING,HNSI0000899,1794.52
Department of Health,Leicestershire Partnership NHS Trust,11/01/22,NURSE - BAND 5 - AGENCY,Lough Swithland Ward,HCL NURSING,HNSI0000899,3147.25
Department of Health,Leicestershire Partnership NHS Trust,11/01/22,NURSE - BAND 2 - AGENCY,St Lukes Stroke Ward,HCL NURSING,HNSI0000899,432.72
Department of Health,Leicestershire Partnership NHS Trust,11/01/22,NURSE - BAND 5 - AGENCY,St Lukes Stroke Ward,HCL NURSING,HNSI0000899,2092.23
Department of Health,Leicestershire Partnership NHS Trust,11/01/22,NURSE - BAND 2 - AGENCY,St Lukes Ward 3,HCL NURSING,HNSI0000899,645.98
Department of Health,Leicestershire Partnership NHS Trust,11/01/22,NURSE - BAND 5 - AGENCY,St Lukes Ward 3,HCL NURSING,HNSI0000899,1338.90
Department of Health,Leicestershire Partnership NHS Trust,11/01/22,NURSE - BAND 2 - AGENCY,Wakerley Ward,HCL NURSING,HNSI0000899,6060.66
Department of Health,Leicestershire Partnership NHS Trust,11/01/22,NURSE - BAND 5 - AGENCY,Wakerley Ward,HCL NURSING,HNSI0000899,6708.19
Department of Health,Leicestershire Partnership NHS Trust,11/01/22,Printing Costs,Universal Child Health Records,HARLOW PRINTING LTD,1047777,36115.00
Department of Health,Leicestershire Partnership NHS Trust,12/01/22,WIP Project Not in BS - Information Technology,Work in Progress,DELL COMPUTERS,7402775813,162078.91
Department of Health,Leicestershire Partnership NHS Trust,12/01/22,WIP Project Not in BS - Information Technology,Work in Progress,DELL COMPUTERS,7402773897,39300.00
Department of Health,Leicestershire Partnership NHS Trust,12/01/22,WIP Project Not in BS - Information Technology,Work in Progress,DELL COMPUTERS,7402773926,39300.00
Department of Health,Leicestershire Partnership NHS Trust,12/01/22,WIP Project Not in BS - Information Technology,Work in Progress,DELL COMPUTERS,7402773899,39300.00
Department of Health,Leicestershire Partnership NHS Trust,12/01/22,WIP Project Not in BS - Information Technology,Work in Progress,DELL COMPUTERS,7402773898,33012.00
Department of Health,Leicestershire Partnership NHS Trust,12/01/22,WIP Project Not in BS - Information Technology,Work in Progress,DELL COMPUTERS,7402774360,28320.00
Department of Health,Leicestershire Partnership NHS Trust,12/01/22,WIP Project Not in BS - Information Technology,Work in Progress,DELL COMPUTERS,7402773875,39300.00
Department of Health,Leicestershire Partnership NHS Trust,12/01/22,HR / Payroll Services,HR Employment Services,LINCOLNSHIRE PART NHSFT(RP7),L0000062,29360.83
Department of Health,Leicestershire Partnership NHS Trust,12/01/22,Med Trainees - FY1,Medical Trainees,UHL NHS TRUST (RWE),C0026314,-37345.29
Department of Health,Leicestershire Partnership NHS Trust,12/01/22,Med Trainees - FY1,Medical Trainees,UHL NHS TRUST (RWE),L0256557,29655.52
Department of Health,Leicestershire Partnership NHS Trust,13/01/22,Rent,County Hall,LEIC COUNTY COUNCIL,6289871,34488.50
Department of Health,Leicestershire Partnership NHS Trust,13/01/22,Network Costs - WAN Maint,HIS Infrastructure,VIRGIN MEDIA BUSINESS,262421-188,37773.07
Department of Health,Leicestershire Partnership NHS Trust,13/01/22,Network Costs - WAN Maint,HIS Infrastructure,VIRGIN MEDIA BUSINESS,262421-189,37773.07
Department of Health,Leicestershire Partnership NHS Trust,14/01/22,Landline Telephone Rental / Calls,"Beaumont Leys Health Centre (P94, LPT)",VIRGIN MEDIA BUSINESS,853083001/004/0122,383.90
Department of Health,Leicestershire Partnership NHS Trust,14/01/22,Landline Telephone Rental / Calls,"Bennion Centre (including Forest Grange Day Unit) (P8, LPT)",VIRGIN MEDIA BUSINESS,853083001/004/0122,7.74
Department of Health,Leicestershire Partnership NHS Trust,14/01/22,Landline Telephone Rental / Calls,"Bradgate Unit (including Glenvale day Unit) (P7, LPT)",VIRGIN MEDIA BUSINESS,853083001/004/0122,8653.82
Department of Health,Leicestershire Partnership NHS Trust,14/01/22,Landline Telephone Rental / Calls,Braunstone Health and Social Care Centre (Part) (PROPCO),VIRGIN MEDIA BUSINESS,853083001/004/0122,1059.43
Department of Health,Leicestershire Partnership NHS Trust,14/01/22,Landline Telephone Rental / Calls,Bridge Park Plaza - First Floor (LPT),VIRGIN MEDIA BUSINESS,853083001/004/0122,3503.69
Department of Health,Leicestershire Partnership NHS Trust,14/01/22,Landline Telephone Rental / Calls,"Coalville Community Hospital (P138, LPT)",VIRGIN MEDIA BUSINESS,853083001/004/0122,1391.84
Department of Health,Leicestershire Partnership NHS Trust,14/01/22,Landline Telephone Rental / Calls,"Coalville Health Centre (P121, LPT)",VIRGIN MEDIA BUSINESS,853083001/004/0122,151.80
Department of Health,Leicestershire Partnership NHS Trust,14/01/22,Landline Telephone Rental / Calls,County Hall,VIRGIN MEDIA BUSINESS,853083001/004/0122,7157.62
Department of Health,Leicestershire Partnership NHS Trust,14/01/22,Landline Telephone Rental / Calls,Estates & Facilities Central,VIRGIN MEDIA BUSINESS,853083001/004/0122,6.47
Department of Health,Leicestershire Partnership NHS Trust,14/01/22,Landline Telephone Rental / Calls,"Evington Centre (P6, LPT)",VIRGIN MEDIA BUSINESS,853083001/004/0122,1732.85
Department of Health,Leicestershire Partnership NHS Trust,14/01/22,Landline Telephone Rental / Calls,HIS,VIRGIN MEDIA BUSINESS,853083001/004/0122,2966.93
Department of Health,Leicestershire Partnership NHS Trust,14/01/22,Landline Telephone Rental / Calls,"Hawthorne Centre - Coalville (P14, LPT)",VIRGIN MEDIA BUSINESS,853083001/004/0122,464.18
Department of Health,Leicestershire Partnership NHS Trust,14/01/22,Landline Telephone Rental / Calls,"Hinckley and Bosworth Community Hospital (Sunnyside) (P133, LPT)",VIRGIN MEDIA BUSINESS,853083001/004/0122,1028.02
Department of Health,Leicestershire Partnership NHS Trust,14/01/22,Landline Telephone Rental / Calls,Hood Park Leisure Centre Clinic,VIRGIN MEDIA BUSINESS,853083001/004/0122,23.82
Department of Health,Leicestershire Partnership NHS Trust,14/01/22,Landline Telephone Rental / Calls,"Hynca Lodge (P33, LPT)",VIRGIN MEDIA BUSINESS,853083001/004/0122,365.24
Department of Health,Leicestershire Partnership NHS Trust,14/01/22,Landline Telephone Rental / Calls,"Legion House, Ashby",VIRGIN MEDIA BUSINESS,853083001/004/0122,46.52
Department of Health,Leicestershire Partnership NHS Trust,14/01/22,Landline Telephone Rental / Calls,"Loughborough Hospital (P136, LPT)",VIRGIN MEDIA BUSINESS,853083001/004/0122,4370.76
Department of Health,Leicestershire Partnership NHS Trust,14/01/22,Landline Telephone Rental / Calls,Mawson House (LPT),VIRGIN MEDIA BUSINESS,853083001/004/0122,460.15
Department of Health,Leicestershire Partnership NHS Trust,14/01/22,Landline Telephone Rental / Calls,Merlyn Vaz Centre (CHP),VIRGIN MEDIA BUSINESS,853083001/004/0122,1348.25
Department of Health,Leicestershire Partnership NHS Trust,14/01/22,Landline Telephone Rental / Calls,"Mett Centre (P49, LPT)",VIRGIN MEDIA BUSINESS,853083001/004/0122,83.46
Department of Health,Leicestershire Partnership NHS Trust,14/01/22,Landline Telephone Rental / Calls,NSPCC Training Cente,VIRGIN MEDIA BUSINESS,853083001/004/0122,159.96
Department of Health,Leicestershire Partnership NHS Trust,14/01/22,Landline Telephone Rental / Calls,New Parks Health Centre (PROPCO),VIRGIN MEDIA BUSINESS,853083001/004/0122,1577.27
Department of Health,Leicestershire Partnership NHS Trust,14/01/22,Landline Telephone Rental / Calls,"OSL House (P54, LPT)",VIRGIN MEDIA BUSINESS,853083001/004/0122,945.42
Department of Health,Leicestershire Partnership NHS Trust,14/01/22,Landline Telephone Rental / Calls,"Orchard Resource Centre (P15, LPT)",VIRGIN MEDIA BUSINESS,853083001/004/0122,581.29
Department of Health,Leicestershire Partnership NHS Trust,14/01/22,Landline Telephone Rental / Calls,Pasley Road Health Centre (PROPCO),VIRGIN MEDIA BUSINESS,853083001/004/0122,94.55
Department of Health,Leicestershire Partnership NHS Trust,14/01/22,Landline Telephone Rental / Calls,"Prince Philip House (P96, LPT)",VIRGIN MEDIA BUSINESS,853083001/004/0122,1674.70
Department of Health,Leicestershire Partnership NHS Trust,14/01/22,Landline Telephone Rental / Calls,Rushey Mead Health Centre (PROPCO),VIRGIN MEDIA BUSINESS,853083001/004/0122,73.80
Department of Health,Leicestershire Partnership NHS Trust,14/01/22,Landline Telephone Rental / Calls,"Shepshed Health Centre (P123, LPT)",VIRGIN MEDIA BUSINESS,853083001/004/0122,12.78
Department of Health,Leicestershire Partnership NHS Trust,14/01/22,Landline Telephone Rental / Calls,"Springfield Road Health Centre (P92, LPT)",VIRGIN MEDIA BUSINESS,853083001/004/0122,311.64
Department of Health,Leicestershire Partnership NHS Trust,14/01/22,Landline Telephone Rental / Calls,"St Peters Health Center (Part 1st and 2nd floors) (P66, LPT)",VIRGIN MEDIA BUSINESS,853083001/004/0122,1835.16
Department of Health,Leicestershire Partnership NHS Trust,14/01/22,Landline Telephone Rental / Calls,"Swithland House - London Road 352 (P44, LPT)",VIRGIN MEDIA BUSINESS,853083001/004/0122,269.41
Department of Health,Leicestershire Partnership NHS Trust,14/01/22,Landline Telephone Rental / Calls,"The Cedars (P19, LPT)",VIRGIN MEDIA BUSINESS,853083001/004/0122,739.39
Department of Health,Leicestershire Partnership NHS Trust,14/01/22,Landline Telephone Rental / Calls,"The Willows - Cordelia Close (P22, LPT)",VIRGIN MEDIA BUSINESS,853083001/004/0122,452.29
Department of Health,Leicestershire Partnership NHS Trust,14/01/22,Landline Telephone Rental / Calls,"Valentine Centre (P3, LPT)",VIRGIN MEDIA BUSINESS,853083001/004/0122,1722.82
Department of Health,Leicestershire Partnership NHS Trust,14/01/22,Landline Telephone Rental / Calls,Warren Park Way 25 (PROPCO),VIRGIN MEDIA BUSINESS,853083001/004/0122,673.18
Department of Health,Leicestershire Partnership NHS Trust,14/01/22,Landline Telephone Rental / Calls,"Westcotes Group -Westcotes House (P78, LPT)",VIRGIN MEDIA BUSINESS,853083001/004/0122,1466.05
Department of Health,Leicestershire Partnership NHS Trust,14/01/22,Landline Telephone Rental / Calls,"Winstanley Drive Health Centre (P8, LPT)",VIRGIN MEDIA BUSINESS,853083001/004/0122,396.70
Department of Health,Leicestershire Partnership NHS Trust,14/01/22,Nurse - Band 6 -Agency,CAMHS HUB / CAP,HCL SOCIAL CARE,HWSI0000992,9300.81
Department of Health,Leicestershire Partnership NHS Trust,14/01/22,Nurse - Band 6 -Agency,CAMHS Waiting List Monies,HCL SOCIAL CARE,HWSI0000992,22273.10
Department of Health,Leicestershire Partnership NHS Trust,14/01/22,Nurse - Band 6 -Agency,Crisis Response and Home Treatment,HCL SOCIAL CARE,HWSI0000992,2069.82
Department of Health,Leicestershire Partnership NHS Trust,14/01/22,NURSE - BAND 2 - AGENCY,CAMHS ED Team,HCL NURSING,HNSI0000904,9472.78
Department of Health,Leicestershire Partnership NHS Trust,14/01/22,NURSE - BAND 2 - AGENCY,CAMHS Inpatient Service,HCL NURSING,HNSI0000904,16778.91
Department of Health,Leicestershire Partnership NHS Trust,14/01/22,NURSE - BAND 5 - AGENCY,CAMHS Inpatient Service,HCL NURSING,HNSI0000904,2330.75
Department of Health,Leicestershire Partnership NHS Trust,14/01/22,NURSE - BAND 2 - AGENCY,CAMHS Outpatients,HCL NURSING,HNSI0000904,562.97
Department of Health,Leicestershire Partnership NHS Trust,14/01/22,Nurse - Band 6 -Agency,CAMHS Waiting List Monies,HCL NURSING,HNSI0000904,5690.04
Department of Health,Leicestershire Partnership NHS Trust,14/01/22,NURSE - BAND 2 - AGENCY,Crisis Response and Home Treatment,HCL NURSING,HNSI0000904,343.11
Department of Health,Leicestershire Partnership NHS Trust,14/01/22,NURSE - BAND 2 - AGENCY,Langley Ward ED Inpatient Service,HCL NURSING,HNSI0000904,1182.10
Department of Health,Leicestershire Partnership NHS Trust,14/01/22,NURSE - BAND 5 - AGENCY,Langley Ward ED Inpatient Service,HCL NURSING,HNSI0000904,3830.89
Department of Health,Leicestershire Partnership NHS Trust,14/01/22,Nurse - Band 6 -Agency,AMH - Central Access Point,HCL NURSING,HNSI0000905,4270.60
Department of Health,Leicestershire Partnership NHS Trust,14/01/22,Nurse - Band 6 -Agency,Adult City East CMHT - Merlyn Vaz,HCL NURSING,HNSI0000905,627.75
Department of Health,Leicestershire Partnership NHS Trust,14/01/22,Nurse - Band 6 -Agency,Adult County Charnwood CMHT - Loughborough Base,HCL NURSING,HNSI0000905,1497.95
Department of Health,Leicestershire Partnership NHS Trust,14/01/22,Nurse - Band 6 -Agency,Adult County West Leicestershire CMHT,HCL NURSING,HNSI0000905,1497.95
Department of Health,Leicestershire Partnership NHS Trust,14/01/22,NURSE - BAND 2 - AGENCY,Agnes Unit Management,HCL NURSING,HNSI0000905,29706.34
Department of Health,Leicestershire Partnership NHS Trust,14/01/22,NURSE - BAND 5 - AGENCY,Agnes Unit Management,HCL NURSING,HNSI0000905,22859.05
Department of Health,Leicestershire Partnership NHS Trust,14/01/22,NURSE - BAND 2 - AGENCY,Ashby Ward (Bradgate Unit),HCL NURSING,HNSI0000905,7255.84
Department of Health,Leicestershire Partnership NHS Trust,14/01/22,NURSE - BAND 5 - AGENCY,Ashby Ward (Bradgate Unit),HCL NURSING,HNSI0000905,8758.52
Department of Health,Leicestershire Partnership NHS Trust,14/01/22,NURSE - BAND 2 - AGENCY,Aston Ward (Bradgate Unit),HCL NURSING,HNSI0000905,3435.42
Department of Health,Leicestershire Partnership NHS Trust,14/01/22,NURSE - BAND 5 - AGENCY,Aston Ward (Bradgate Unit),HCL NURSING,HNSI0000905,5071.55
Department of Health,Leicestershire Partnership NHS Trust,14/01/22,NURSE - BAND 2 - AGENCY,Beaumont Ward - Bradgate Unit,HCL NURSING,HNSI0000905,2834.73
Department of Health,Leicestershire Partnership NHS Trust,14/01/22,NURSE - BAND 5 - AGENCY,Beaumont Ward - Bradgate Unit,HCL NURSING,HNSI0000905,4732.64
Department of Health,Leicestershire Partnership NHS Trust,14/01/22,NURSE - BAND 2 - AGENCY,Belvoir Psychiatric Intensive Care Unit,HCL NURSING,HNSI0000905,3867.10
Department of Health,Leicestershire Partnership NHS Trust,14/01/22,NURSE - BAND 5 - AGENCY,Belvoir Psychiatric Intensive Care Unit,HCL NURSING,HNSI0000905,6443.68
Department of Health,Leicestershire Partnership NHS Trust,14/01/22,NURSE - BAND 2 - AGENCY,Cedar (Willows),HCL NURSING,HNSI0000905,707.65
Department of Health,Leicestershire Partnership NHS Trust,14/01/22,Nurse - Band 6 -Agency,City West CMHT MHSOP,HCL NURSING,HNSI0000905,641.98
Department of Health,Leicestershire Partnership NHS Trust,14/01/22,NURSE - BAND 2 - AGENCY,Coleman Ward,HCL NURSING,HNSI0000905,4285.20
Department of Health,Leicestershire Partnership NHS Trust,14/01/22,NURSE - BAND 5 - AGENCY,Coleman Ward,HCL NURSING,HNSI0000905,6959.31
Department of Health,Leicestershire Partnership NHS Trust,14/01/22,Nurse - Band 6 -Agency,Crisis Resolution,HCL NURSING,HNSI0000905,2190.56
Department of Health,Leicestershire Partnership NHS Trust,14/01/22,NURSE - BAND 2 - AGENCY,Gillivers,HCL NURSING,HNSI0000905,459.23
Department of Health,Leicestershire Partnership NHS Trust,14/01/22,NURSE - BAND 2 - AGENCY,Griffin Ward (HPC),HCL NURSING,HNSI0000905,1376.08
Department of Health,Leicestershire Partnership NHS Trust,14/01/22,NURSE - BAND 5 - AGENCY,Griffin Ward (HPC),HCL NURSING,HNSI0000905,7037.65
Department of Health,Leicestershire Partnership NHS Trust,14/01/22,NURSE - BAND 2 - AGENCY,Heather Ward,HCL NURSING,HNSI0000905,6145.70
Department of Health,Leicestershire Partnership NHS Trust,14/01/22,NURSE - BAND 5 - AGENCY,Heather Ward,HCL NURSING,HNSI0000905,5706.15
Department of Health,Leicestershire Partnership NHS Trust,14/01/22,NURSE - BAND 2 - AGENCY,Kirby Ward,HCL NURSING,HNSI0000905,989.79
Department of Health,Leicestershire Partnership NHS Trust,14/01/22,NURSE - BAND 5 - AGENCY,Kirby Ward,HCL NURSING,HNSI0000905,3417.80
Department of Health,Leicestershire Partnership NHS Trust,14/01/22,NURSE - BAND 2 - AGENCY,Maple Ward,HCL NURSING,HNSI0000905,1880.50
Department of Health,Leicestershire Partnership NHS Trust,14/01/22,NURSE - BAND 5 - AGENCY,Maple Ward,HCL NURSING,HNSI0000905,449.54
Department of Health,Leicestershire Partnership NHS Trust,14/01/22,Nurse - Band 6 -Agency,Mental Health Liaison Team,HCL NURSING,HNSI0000905,1859.93
Department of Health,Leicestershire Partnership NHS Trust,14/01/22,NURSE - BAND 2 - AGENCY,Mill Lodge,HCL NURSING,HNSI0000905,1195.38
Department of Health,Leicestershire Partnership NHS Trust,14/01/22,NURSE - BAND 5 - AGENCY,Mill Lodge,HCL NURSING,HNSI0000905,1214.15
Department of Health,Leicestershire Partnership NHS Trust,14/01/22,NURSE - BAND 2 - AGENCY,Phoenix Ward (HPC),HCL NURSING,HNSI0000905,3744.84
Department of Health,Leicestershire Partnership NHS Trust,14/01/22,NURSE - BAND 5 - AGENCY,Phoenix Ward (HPC),HCL NURSING,HNSI0000905,1558.55
Department of Health,Leicestershire Partnership NHS Trust,14/01/22,NURSE - BAND 2 - AGENCY,Place Of Safety Assessment Unit,HCL NURSING,HNSI0000905,1484.66
Department of Health,Leicestershire Partnership NHS Trust,14/01/22,NURSE - BAND 5 - AGENCY,Place Of Safety Assessment Unit,HCL NURSING,HNSI0000905,4122.15
Department of Health,Leicestershire Partnership NHS Trust,14/01/22,NURSE - BAND 2 - AGENCY,Stewart House,HCL NURSING,HNSI0000905,394.80
Department of Health,Leicestershire Partnership NHS Trust,14/01/22,NURSE - BAND 5 - AGENCY,Stewart House,HCL NURSING,HNSI0000905,1324.00
Department of Health,Leicestershire Partnership NHS Trust,14/01/22,NURSE - BAND 2 - AGENCY,The Grange,HCL NURSING,HNSI0000905,300.95
Department of Health,Leicestershire Partnership NHS Trust,14/01/22,NURSE - BAND 2 - AGENCY,Thornton Ward - Bradgate Unit,HCL NURSING,HNSI0000905,957.97
Department of Health,Leicestershire Partnership NHS Trust,14/01/22,NURSE - BAND 5 - AGENCY,Thornton Ward - Bradgate Unit,HCL NURSING,HNSI0000905,789.52
Department of Health,Leicestershire Partnership NHS Trust,14/01/22,NURSE - BAND 2 - AGENCY,Watermead Ward (Bradgate Unit),HCL NURSING,HNSI0000905,5302.46
Department of Health,Leicestershire Partnership NHS Trust,14/01/22,NURSE - BAND 5 - AGENCY,Watermead Ward (Bradgate Unit),HCL NURSING,HNSI0000905,5541.55
Department of Health,Leicestershire Partnership NHS Trust,14/01/22,NURSE - BAND 2 - AGENCY,Welford Ward,HCL NURSING,HNSI0000905,2305.59
Department of Health,Leicestershire Partnership NHS Trust,14/01/22,NURSE - BAND 5 - AGENCY,Welford Ward,HCL NURSING,HNSI0000905,2881.32
Department of Health,Leicestershire Partnership NHS Trust,17/01/22,Contract : Accomodation,Crisis House and Cafe,TURNING POINT,SI-TPS-00037353,96937.75
Department of Health,Leicestershire Partnership NHS Trust,17/01/22,Contract : Accomodation,Crisis House and Cafe,TURNING POINT,SI-TPS-00037354,96937.75
Department of Health,Leicestershire Partnership NHS Trust,17/01/22,Contract : Accomodation,Crisis House and Cafe,TURNING POINT,SI-TPS-00037355,96937.75
Department of Health,Leicestershire Partnership NHS Trust,17/01/22,Contract : Accomodation,Crisis House and Cafe,TURNING POINT,SI-TPS-00037356,96937.75
Department of Health,Leicestershire Partnership NHS Trust,17/01/22,Contract : Accomodation,Crisis House and Cafe,TURNING POINT,SI-TPS-00037357,96937.75
Department of Health,Leicestershire Partnership NHS Trust,17/01/22,Contract : Accomodation,Crisis House and Cafe,TURNING POINT,SI-TPS-00037358,96937.75
Department of Health,Leicestershire Partnership NHS Trust,17/01/22,Contract : Accomodation,Crisis House and Cafe,TURNING POINT,SI-TPS-00037359,96937.75
Department of Health,Leicestershire Partnership NHS Trust,17/01/22,Contract : Accomodation,Crisis House and Cafe,TURNING POINT,SI-TPS-00037360,96937.75
Department of Health,Leicestershire Partnership NHS Trust,17/01/22,WIP Project Not in BS - Information Technology,Work in Progress,HUMBER  NHSFT  (RV9),59890678,887000.00
Department of Health,Leicestershire Partnership NHS Trust,17/01/22,Crs_NHS_LT1y -Resus Inventory Supplied.,Balance Sheet Collection,SUPPLY CHAIN CO LTD,1122190628,27590.69
Department of Health,Leicestershire Partnership NHS Trust,18/01/22,Contract : Accomodation,Crisis House and Cafe,TURNING POINT,SI-TPS-00037378,96937.75
Department of Health,Leicestershire Partnership NHS Trust,18/01/22,Services / Recharges from NHS Trusts,Inter Unit I & E Distribution,UHL NHS TRUST (RWE),L0256721,60000.04
Department of Health,Leicestershire Partnership NHS Trust,19/01/22,NURSE - BAND 2 - AGENCY,Beechwood Ward,HCL NURSING,HNSI0000906,1275.39
Department of Health,Leicestershire Partnership NHS Trust,19/01/22,NURSE - BAND 5 - AGENCY,Beechwood Ward,HCL NURSING,HNSI0000906,965.19
Department of Health,Leicestershire Partnership NHS Trust,19/01/22,NURSE - BAND 5 - AGENCY,City Planned Care - East,HCL NURSING,HNSI0000906,14281.44
Department of Health,Leicestershire Partnership NHS Trust,19/01/22,NURSE - BAND 5 - AGENCY,City Planned Care - West,HCL NURSING,HNSI0000906,15065.57
Department of Health,Leicestershire Partnership NHS Trust,19/01/22,NURSE - BAND 2 - AGENCY,Clarendon Ward,HCL NURSING,HNSI0000906,4643.55
Department of Health,Leicestershire Partnership NHS Trust,19/01/22,NURSE - BAND 5 - AGENCY,Clarendon Ward,HCL NURSING,HNSI0000906,4969.32
Department of Health,Leicestershire Partnership NHS Trust,19/01/22,NURSE - BAND 2 - AGENCY,Coalville Snibston Ward,HCL NURSING,HNSI0000906,907.21
Department of Health,Leicestershire Partnership NHS Trust,19/01/22,NURSE - BAND 5 - AGENCY,Coalville Snibston Ward,HCL NURSING,HNSI0000906,3620.46
Department of Health,Leicestershire Partnership NHS Trust,19/01/22,NURSE - BAND 2 - AGENCY,Coalville Ward 2,HCL NURSING,HNSI0000906,1594.86
Department of Health,Leicestershire Partnership NHS Trust,19/01/22,NURSE - BAND 5 - AGENCY,Coalville Ward 2,HCL NURSING,HNSI0000906,396.56
Department of Health,Leicestershire Partnership NHS Trust,19/01/22,NURSE - BAND 2 - AGENCY,Dalgliesh Ward,HCL NURSING,HNSI0000906,1972.50
Department of Health,Leicestershire Partnership NHS Trust,19/01/22,NURSE - BAND 5 - AGENCY,Dalgliesh Ward,HCL NURSING,HNSI0000906,449.54
Department of Health,Leicestershire Partnership NHS Trust,19/01/22,NURSE - BAND 2 - AGENCY,H&B Comm Hosp East Ward,HCL NURSING,HNSI0000906,6629.93
Department of Health,Leicestershire Partnership NHS Trust,19/01/22,NURSE - BAND 5 - AGENCY,H&B Comm Hosp East Ward,HCL NURSING,HNSI0000906,10446.17
Department of Health,Leicestershire Partnership NHS Trust,19/01/22,NURSE - BAND 2 - AGENCY,H&B Comm Hosp North Ward,HCL NURSING,HNSI0000906,5666.22
Department of Health,Leicestershire Partnership NHS Trust,19/01/22,NURSE - BAND 5 - AGENCY,H&B Comm Hosp North Ward,HCL NURSING,HNSI0000906,1970.22
Department of Health,Leicestershire Partnership NHS Trust,19/01/22,NURSE - BAND 2 - AGENCY,Lough Swithland Ward,HCL NURSING,HNSI0000906,1649.62
Department of Health,Leicestershire Partnership NHS Trust,19/01/22,NURSE - BAND 5 - AGENCY,Lough Swithland Ward,HCL NURSING,HNSI0000906,3532.75
Department of Health,Leicestershire Partnership NHS Trust,19/01/22,NURSE - BAND 2 - AGENCY,Rutland Ward Nursing,HCL NURSING,HNSI0000906,432.72
Department of Health,Leicestershire Partnership NHS Trust,19/01/22,NURSE - BAND 2 - AGENCY,St Lukes Stroke Ward,HCL NURSING,HNSI0000906,604.35
Department of Health,Leicestershire Partnership NHS Trust,19/01/22,NURSE - BAND 5 - AGENCY,St Lukes Stroke Ward,HCL NURSING,HNSI0000906,329.84
Department of Health,Leicestershire Partnership NHS Trust,19/01/22,NURSE - BAND 2 - AGENCY,St Lukes Ward 3,HCL NURSING,HNSI0000906,1512.38
Department of Health,Leicestershire Partnership NHS Trust,19/01/22,NURSE - BAND 5 - AGENCY,St Lukes Ward 3,HCL NURSING,HNSI0000906,1365.70
Department of Health,Leicestershire Partnership NHS Trust,19/01/22,NURSE - BAND 2 - AGENCY,Wakerley Ward,HCL NURSING,HNSI0000906,3881.54
Department of Health,Leicestershire Partnership NHS Trust,19/01/22,NURSE - BAND 5 - AGENCY,Wakerley Ward,HCL NURSING,HNSI0000906,8877.21
Department of Health,Leicestershire Partnership NHS Trust,19/01/22,Gas,"Beaumont Leys Health Centre (P94, LPT)",TOTAL GAS & POWER LTD,256914696/22,364.98
Department of Health,Leicestershire Partnership NHS Trust,19/01/22,Gas,"Bradgate Unit (including Glenvale day Unit) (P7, LPT)",TOTAL GAS & POWER LTD,256914696/22,24004.46
Department of Health,Leicestershire Partnership NHS Trust,19/01/22,Gas,Bridge Park Plaza - First Floor (LPT),TOTAL GAS & POWER LTD,256914696/22,1308.88
Department of Health,Leicestershire Partnership NHS Trust,19/01/22,Gas,"Bridge Park Road - Units 2 and 3 (P148, LPT)",TOTAL GAS & POWER LTD,256914696/22,339.19
Department of Health,Leicestershire Partnership NHS Trust,19/01/22,Gas,"Coalville Community Hospital (P138, LPT)",TOTAL GAS & POWER LTD,256914696/22,7651.57
Department of Health,Leicestershire Partnership NHS Trust,19/01/22,Gas,"Coalville Health Centre (P121, LPT)",TOTAL GAS & POWER LTD,256914696/22,632.24
Department of Health,Leicestershire Partnership NHS Trust,19/01/22,Gas,"Evington Centre (P6, LPT)",TOTAL GAS & POWER LTD,256914696/22,1240.66
Department of Health,Leicestershire Partnership NHS Trust,19/01/22,Gas,"Farm Lodge (P34, LPT)",TOTAL GAS & POWER LTD,256914696/22,201.48
Department of Health,Leicestershire Partnership NHS Trust,19/01/22,Gas,"Feilding Palmer Hospital (Lutterworth) (P131, LPT)",TOTAL GAS & POWER LTD,256914696/22,1453.74
Department of Health,Leicestershire Partnership NHS Trust,19/01/22,Gas,"Frith Cottages 3 & 4 (P36, LPT)",TOTAL GAS & POWER LTD,256914696/22,208.10
Department of Health,Leicestershire Partnership NHS Trust,19/01/22,Gas,HIS,TOTAL GAS & POWER LTD,256914696/22,283.21
Department of Health,Leicestershire Partnership NHS Trust,19/01/22,Gas,"Hawthorne Centre - Coalville (P14, LPT)",TOTAL GAS & POWER LTD,256914696/22,453.29
Department of Health,Leicestershire Partnership NHS Trust,19/01/22,Gas,"Hinckley and Bosworth Community Hospital (Sunnyside) (P133, LPT)",TOTAL GAS & POWER LTD,256914696/22,5392.51
Department of Health,Leicestershire Partnership NHS Trust,19/01/22,Gas,"Hynca Lodge (P33, LPT)",TOTAL GAS & POWER LTD,256914696/22,452.50
Department of Health,Leicestershire Partnership NHS Trust,19/01/22,Gas,"LGH - Gwendolen House (P4, LPT)",TOTAL GAS & POWER LTD,256914696/22,2026.66
Department of Health,Leicestershire Partnership NHS Trust,19/01/22,Gas,"Loughborough Hospital (P136, LPT)",TOTAL GAS & POWER LTD,256914696/22,15216.90
Department of Health,Leicestershire Partnership NHS Trust,19/01/22,Gas,Mawson House (LPT),TOTAL GAS & POWER LTD,256914696/22,703.14
Department of Health,Leicestershire Partnership NHS Trust,19/01/22,Gas,"Mett Centre (P49, LPT)",TOTAL GAS & POWER LTD,256914696/22,293.98
Department of Health,Leicestershire Partnership NHS Trust,19/01/22,Gas,"Narborough Health Centre (P117, LPT)",TOTAL GAS & POWER LTD,256914696/22,514.22
Department of Health,Leicestershire Partnership NHS Trust,19/01/22,Gas,"Neville Centre - LGH (was DSC) (P147, LPT)",TOTAL GAS & POWER LTD,256914696/22,816.66
Department of Health,Leicestershire Partnership NHS Trust,19/01/22,Gas,"OSL House (P54, LPT)",TOTAL GAS & POWER LTD,256914696/22,781.21
Department of Health,Leicestershire Partnership NHS Trust,19/01/22,Gas,"Orchard Resource Centre (P15, LPT)",TOTAL GAS & POWER LTD,256914696/22,655.62
Department of Health,Leicestershire Partnership NHS Trust,19/01/22,Gas,"Rutland Memorial Hospital (P134, LPT)",TOTAL GAS & POWER LTD,256914696/22,2332.80
Department of Health,Leicestershire Partnership NHS Trust,19/01/22,Gas,"Shepshed Health Centre (P123, LPT)",TOTAL GAS & POWER LTD,256914696/22,605.65
Department of Health,Leicestershire Partnership NHS Trust,19/01/22,Gas,"Springfield Road Health Centre (P92, LPT)",TOTAL GAS & POWER LTD,256914696/22,682.61
Department of Health,Leicestershire Partnership NHS Trust,19/01/22,Gas,"Stewart House (P61, LPT)",TOTAL GAS & POWER LTD,256914696/22,2713.69
Department of Health,Leicestershire Partnership NHS Trust,19/01/22,Gas,"Swithland House - London Road 352 (P44, LPT)",TOTAL GAS & POWER LTD,256914696/22,915.74
Department of Health,Leicestershire Partnership NHS Trust,19/01/22,Gas,"The Agnes Unit (AKA Assessment and Treatment Centre) (P85, LPT)",TOTAL GAS & POWER LTD,256914696/22,3329.97
Department of Health,Leicestershire Partnership NHS Trust,19/01/22,Gas,The Beacon,TOTAL GAS & POWER LTD,256914696/22,1728.71
Department of Health,Leicestershire Partnership NHS Trust,19/01/22,Gas,"The Cedars (P19, LPT)",TOTAL GAS & POWER LTD,256914696/22,335.02
Department of Health,Leicestershire Partnership NHS Trust,19/01/22,Gas,"The Grange 1 (P4, LPT)",TOTAL GAS & POWER LTD,256914696/22,291.85
Department of Health,Leicestershire Partnership NHS Trust,19/01/22,Gas,"The Grange 2 (P41, LPT)",TOTAL GAS & POWER LTD,256914696/22,233.17
Department of Health,Leicestershire Partnership NHS Trust,19/01/22,Gas,"The Willows - Cordelia Close (P22, LPT)",TOTAL GAS & POWER LTD,256914696/22,3148.18
Department of Health,Leicestershire Partnership NHS Trust,19/01/22,Gas,"Valentine Centre (P3, LPT)",TOTAL GAS & POWER LTD,256914696/22,1739.17
Department of Health,Leicestershire Partnership NHS Trust,19/01/22,Gas,"Westcotes Group -Westcotes House (P78, LPT)",TOTAL GAS & POWER LTD,256914696/22,1174.52
Department of Health,Leicestershire Partnership NHS Trust,19/01/22,Gas,"Winstanley Drive Health Centre (P8, LPT)",TOTAL GAS & POWER LTD,256914696/22,526.09
Department of Health,Leicestershire Partnership NHS Trust,21/01/22,External Consultancy Fees,FM Transformation,TURNER & TOWNSEND COST MAN,PRIV00000469,27000.00
Department of Health,Leicestershire Partnership NHS Trust,21/01/22,Services / Recharges from NHS Trusts,Inter Unit I & E Distribution,UHL NHS TRUST (RWE),L0256768,144923.71
Department of Health,Leicestershire Partnership NHS Trust,21/01/22,Nurse - Band 6 -Agency,AMH - Central Access Point,HCL NURSING,HNSI0000907,1569.77
Department of Health,Leicestershire Partnership NHS Trust,21/01/22,Nurse - Band 6 -Agency,Adult City East CMHT - Merlyn Vaz,HCL NURSING,HNSI0000907,837.00
Department of Health,Leicestershire Partnership NHS Trust,21/01/22,Nurse - Band 6 -Agency,Adult County Charnwood CMHT - Loughborough Base,HCL NURSING,HNSI0000907,1069.97
Department of Health,Leicestershire Partnership NHS Trust,21/01/22,Nurse - Band 6 -Agency,Adult County West Leicestershire CMHT,HCL NURSING,HNSI0000907,1069.97
Department of Health,Leicestershire Partnership NHS Trust,21/01/22,NURSE - BAND 2 - AGENCY,Agnes Unit Management,HCL NURSING,HNSI0000907,23868.97
Department of Health,Leicestershire Partnership NHS Trust,21/01/22,NURSE - BAND 5 - AGENCY,Agnes Unit Management,HCL NURSING,HNSI0000907,18499.93
Department of Health,Leicestershire Partnership NHS Trust,21/01/22,NURSE - BAND 2 - AGENCY,Ashby Ward (Bradgate Unit),HCL NURSING,HNSI0000907,1347.67
Department of Health,Leicestershire Partnership NHS Trust,21/01/22,NURSE - BAND 5 - AGENCY,Ashby Ward (Bradgate Unit),HCL NURSING,HNSI0000907,6662.94
Department of Health,Leicestershire Partnership NHS Trust,21/01/22,NURSE - BAND 2 - AGENCY,Aston Ward (Bradgate Unit),HCL NURSING,HNSI0000907,4893.57
Department of Health,Leicestershire Partnership NHS Trust,21/01/22,NURSE - BAND 5 - AGENCY,Aston Ward (Bradgate Unit),HCL NURSING,HNSI0000907,11309.96
Department of Health,Leicestershire Partnership NHS Trust,21/01/22,NURSE - BAND 2 - AGENCY,Beaumont Ward - Bradgate Unit,HCL NURSING,HNSI0000907,174.73
Department of Health,Leicestershire Partnership NHS Trust,21/01/22,NURSE - BAND 5 - AGENCY,Beaumont Ward - Bradgate Unit,HCL NURSING,HNSI0000907,5643.72
Department of Health,Leicestershire Partnership NHS Trust,21/01/22,NURSE - BAND 2 - AGENCY,Belvoir Psychiatric Intensive Care Unit,HCL NURSING,HNSI0000907,5304.57
Department of Health,Leicestershire Partnership NHS Trust,21/01/22,NURSE - BAND 5 - AGENCY,Belvoir Psychiatric Intensive Care Unit,HCL NURSING,HNSI0000907,3703.62
Department of Health,Leicestershire Partnership NHS Trust,21/01/22,NURSE - BAND 2 - AGENCY,Cedar (Willows),HCL NURSING,HNSI0000907,1615.81
Department of Health,Leicestershire Partnership NHS Trust,21/01/22,NURSE - BAND 5 - AGENCY,Cedar (Willows),HCL NURSING,HNSI0000907,1431.43
Department of Health,Leicestershire Partnership NHS Trust,21/01/22,Nurse - Band 6 -Agency,City West CMHT MHSOP,HCL NURSING,HNSI0000907,837.00
Department of Health,Leicestershire Partnership NHS Trust,21/01/22,NURSE - BAND 2 - AGENCY,Coleman Ward,HCL NURSING,HNSI0000907,2948.93
Department of Health,Leicestershire Partnership NHS Trust,21/01/22,NURSE - BAND 5 - AGENCY,Coleman Ward,HCL NURSING,HNSI0000907,4853.15
Department of Health,Leicestershire Partnership NHS Trust,21/01/22,NURSE - BAND 2 - AGENCY,Griffin Ward (HPC),HCL NURSING,HNSI0000907,2001.17
Department of Health,Leicestershire Partnership NHS Trust,21/01/22,NURSE - BAND 5 - AGENCY,Griffin Ward (HPC),HCL NURSING,HNSI0000907,6642.11
Department of Health,Leicestershire Partnership NHS Trust,21/01/22,NURSE - BAND 2 - AGENCY,Heather Ward,HCL NURSING,HNSI0000907,1724.66
Department of Health,Leicestershire Partnership NHS Trust,21/01/22,NURSE - BAND 5 - AGENCY,Heather Ward,HCL NURSING,HNSI0000907,5595.14
Department of Health,Leicestershire Partnership NHS Trust,21/01/22,NURSE - BAND 2 - AGENCY,Kirby Ward,HCL NURSING,HNSI0000907,527.22
Department of Health,Leicestershire Partnership NHS Trust,21/01/22,NURSE - BAND 5 - AGENCY,Kirby Ward,HCL NURSING,HNSI0000907,2454.91
Department of Health,Leicestershire Partnership NHS Trust,21/01/22,NURSE - BAND 2 - AGENCY,Maple Ward,HCL NURSING,HNSI0000907,1476.27
Department of Health,Leicestershire Partnership NHS Trust,21/01/22,Nurse - Band 6 -Agency,Mental Health Liaison Team,HCL NURSING,HNSI0000907,2156.98
Department of Health,Leicestershire Partnership NHS Trust,21/01/22,NURSE - BAND 2 - AGENCY,Mill Lodge,HCL NURSING,HNSI0000907,3198.85
Department of Health,Leicestershire Partnership NHS Trust,21/01/22,NURSE - BAND 5 - AGENCY,Mill Lodge,HCL NURSING,HNSI0000907,2805.60
Department of Health,Leicestershire Partnership NHS Trust,21/01/22,NURSE - BAND 2 - AGENCY,Phoenix Ward (HPC),HCL NURSING,HNSI0000907,1997.98
Department of Health,Leicestershire Partnership NHS Trust,21/01/22,NURSE - BAND 5 - AGENCY,Phoenix Ward (HPC),HCL NURSING,HNSI0000907,4184.88
Department of Health,Leicestershire Partnership NHS Trust,21/01/22,NURSE - BAND 2 - AGENCY,Place Of Safety Assessment Unit,HCL NURSING,HNSI0000907,708.04
Department of Health,Leicestershire Partnership NHS Trust,21/01/22,NURSE - BAND 5 - AGENCY,Place Of Safety Assessment Unit,HCL NURSING,HNSI0000907,3468.13
Department of Health,Leicestershire Partnership NHS Trust,21/01/22,NURSE - BAND 2 - AGENCY,Stewart House,HCL NURSING,HNSI0000907,425.55
Department of Health,Leicestershire Partnership NHS Trust,21/01/22,NURSE - BAND 5 - AGENCY,Stewart House,HCL NURSING,HNSI0000907,3941.26
Department of Health,Leicestershire Partnership NHS Trust,21/01/22,NURSE - BAND 5 - AGENCY,Sycamore (Willows),HCL NURSING,HNSI0000907,525.35
Department of Health,Leicestershire Partnership NHS Trust,21/01/22,NURSE - BAND 2 - AGENCY,Thornton Ward - Bradgate Unit,HCL NURSING,HNSI0000907,444.22
Department of Health,Leicestershire Partnership NHS Trust,21/01/22,NURSE - BAND 2 - AGENCY,Watermead Ward (Bradgate Unit),HCL NURSING,HNSI0000907,9505.09
Department of Health,Leicestershire Partnership NHS Trust,21/01/22,NURSE - BAND 5 - AGENCY,Watermead Ward (Bradgate Unit),HCL NURSING,HNSI0000907,10464.36
Department of Health,Leicestershire Partnership NHS Trust,21/01/22,NURSE - BAND 2 - AGENCY,Welford Ward,HCL NURSING,HNSI0000907,113.29
Department of Health,Leicestershire Partnership NHS Trust,21/01/22,NURSE - BAND 5 - AGENCY,Welford Ward,HCL NURSING,HNSI0000907,1408.95
Department of Health,Leicestershire Partnership NHS Trust,21/01/22,Nurse - Band 6 -Agency,CAMHS HUB / CAP,HCL SOCIAL CARE,HWSI0001001,9183.88
Department of Health,Leicestershire Partnership NHS Trust,21/01/22,Nurse - Band 6 -Agency,CAMHS Waiting List Monies,HCL SOCIAL CARE,HWSI0001001,21501.22
Department of Health,Leicestershire Partnership NHS Trust,21/01/22,Nurse - Band 6 -Agency,Crisis Response and Home Treatment,HCL SOCIAL CARE,HWSI0001001,1959.02
Department of Health,Leicestershire Partnership NHS Trust,21/01/22,NURSE - BAND 2 - AGENCY,CAMHS ED Team,HCL NURSING,HNSI0000909,4587.31
Department of Health,Leicestershire Partnership NHS Trust,21/01/22,NURSE - BAND 2 - AGENCY,CAMHS Inpatient Service,HCL NURSING,HNSI0000909,16024.35
Department of Health,Leicestershire Partnership NHS Trust,21/01/22,NURSE - BAND 5 - AGENCY,CAMHS Inpatient Service,HCL NURSING,HNSI0000909,1889.85
Department of Health,Leicestershire Partnership NHS Trust,21/01/22,NURSE - BAND 2 - AGENCY,CAMHS Outpatients,HCL NURSING,HNSI0000909,430.27
Department of Health,Leicestershire Partnership NHS Trust,21/01/22,Nurse - Band 6 -Agency,CAMHS Waiting List Monies,HCL NURSING,HNSI0000909,6477.17
Department of Health,Leicestershire Partnership NHS Trust,21/01/22,NURSE - BAND 2 - AGENCY,Crisis Response and Home Treatment,HCL NURSING,HNSI0000909,343.11
Department of Health,Leicestershire Partnership NHS Trust,21/01/22,NURSE - BAND 2 - AGENCY,Langley Ward ED Inpatient Service,HCL NURSING,HNSI0000909,1057.36
Department of Health,Leicestershire Partnership NHS Trust,21/01/22,NURSE - BAND 5 - AGENCY,Langley Ward ED Inpatient Service,HCL NURSING,HNSI0000909,2540.69
Department of Health,Leicestershire Partnership NHS Trust,21/01/22,Insurance Costs,Chief Executives Office,NHS LITIGATION AUTHORITY,SICX407821,165217.80
Department of Health,Leicestershire Partnership NHS Trust,21/01/22,WIP Project Not in BS - Information Technology,Work in Progress,DELL COMPUTERS,7402777768,39300.00
Department of Health,Leicestershire Partnership NHS Trust,21/01/22,WIP Project Not in BS - Information Technology,Work in Progress,DELL COMPUTERS,7402777769,39300.00
Department of Health,Leicestershire Partnership NHS Trust,21/01/22,WIP Project Not in BS - Information Technology,Work in Progress,DELL COMPUTERS,7402777767,39300.00
Department of Health,Leicestershire Partnership NHS Trust,21/01/22,GP IT Expenditure,Area Team,DELL COMPUTERS,7402775351,30420.00
Department of Health,Leicestershire Partnership NHS Trust,21/01/22,GP IT Expenditure,Area Team,DELL COMPUTERS,7402771647,28020.00
Department of Health,Leicestershire Partnership NHS Trust,24/01/22,Crs_NHS_LT1y -Resus Inventory Supplied.,Balance Sheet Collection,SUPPLY CHAIN CO LTD,1122198297,31167.70
Department of Health,Leicestershire Partnership NHS Trust,24/01/22,WIP Project Not in BS - Information Technology,Work in Progress,DELL COMPUTERS,7402778031,39300.00
Department of Health,Leicestershire Partnership NHS Trust,24/01/22,WIP Project Not in BS - Information Technology,Work in Progress,DELL COMPUTERS,7402778030,39300.00
Department of Health,Leicestershire Partnership NHS Trust,24/01/22,WIP Project Not in BS - Information Technology,Work in Progress,DELL COMPUTERS,7402778028,39300.00
Department of Health,Leicestershire Partnership NHS Trust,24/01/22,WIP Project Not in BS - Information Technology,Work in Progress,DELL COMPUTERS,7402778032,39300.00
Department of Health,Leicestershire Partnership NHS Trust,24/01/22,WIP Project Not in BS - Information Technology,Work in Progress,DELL COMPUTERS,7402778029,39300.00
Department of Health,Leicestershire Partnership NHS Trust,24/01/22,WIP Project Not in BS - Information Technology,Work in Progress,DELL COMPUTERS,7402788291,38514.00
Department of Health,Leicestershire Partnership NHS Trust,24/01/22,WIP Project Not in BS - Information Technology,Work in Progress,DELL COMPUTERS,7402778456,30060.00
Department of Health,Leicestershire Partnership NHS Trust,24/01/22,WIP Project Not in BS - Information Technology,Work in Progress,DELL COMPUTERS,7402778454,30060.00
Department of Health,Leicestershire Partnership NHS Trust,26/01/22,NURSE - BAND 2 - AGENCY,Beechwood Ward,HCL NURSING,HNSI0000908,5031.96
Department of Health,Leicestershire Partnership NHS Trust,26/01/22,NURSE - BAND 5 - AGENCY,Beechwood Ward,HCL NURSING,HNSI0000908,2317.86
Department of Health,Leicestershire Partnership NHS Trust,26/01/22,NURSE - BAND 5 - AGENCY,City Planned Care - East,HCL NURSING,HNSI0000908,19736.82
Department of Health,Leicestershire Partnership NHS Trust,26/01/22,NURSE - BAND 5 - AGENCY,City Planned Care - West,HCL NURSING,HNSI0000908,14854.83
Department of Health,Leicestershire Partnership NHS Trust,26/01/22,NURSE - BAND 2 - AGENCY,Clarendon Ward,HCL NURSING,HNSI0000908,1054.86
Department of Health,Leicestershire Partnership NHS Trust,26/01/22,NURSE - BAND 5 - AGENCY,Clarendon Ward,HCL NURSING,HNSI0000908,964.39
Department of Health,Leicestershire Partnership NHS Trust,26/01/22,NURSE - BAND 5 - AGENCY,Coalville Snibston Ward,HCL NURSING,HNSI0000908,2634.38
Department of Health,Leicestershire Partnership NHS Trust,26/01/22,NURSE - BAND 2 - AGENCY,Coalville Ward 2,HCL NURSING,HNSI0000908,1485.29
Department of Health,Leicestershire Partnership NHS Trust,26/01/22,NURSE - BAND 5 - AGENCY,Coalville Ward 2,HCL NURSING,HNSI0000908,525.35
Department of Health,Leicestershire Partnership NHS Trust,26/01/22,NURSE - BAND 2 - AGENCY,Dalgliesh Ward,HCL NURSING,HNSI0000908,1939.59
Department of Health,Leicestershire Partnership NHS Trust,26/01/22,NURSE - BAND 2 - AGENCY,H&B Comm Hosp East Ward,HCL NURSING,HNSI0000908,2012.04
Department of Health,Leicestershire Partnership NHS Trust,26/01/22,NURSE - BAND 5 - AGENCY,H&B Comm Hosp East Ward,HCL NURSING,HNSI0000908,7612.84
Department of Health,Leicestershire Partnership NHS Trust,26/01/22,NURSE - BAND 2 - AGENCY,H&B Comm Hosp North Ward,HCL NURSING,HNSI0000908,6155.89
Department of Health,Leicestershire Partnership NHS Trust,26/01/22,NURSE - BAND 5 - AGENCY,H&B Comm Hosp North Ward,HCL NURSING,HNSI0000908,4480.91
Department of Health,Leicestershire Partnership NHS Trust,26/01/22,NURSE - BAND 2 - AGENCY,Lough Swithland Ward,HCL NURSING,HNSI0000908,1712.59
Department of Health,Leicestershire Partnership NHS Trust,26/01/22,NURSE - BAND 5 - AGENCY,Lough Swithland Ward,HCL NURSING,HNSI0000908,1737.35
Department of Health,Leicestershire Partnership NHS Trust,26/01/22,NURSE - BAND 5 - AGENCY,Rutland Ward Nursing,HCL NURSING,HNSI0000908,1376.20
Department of Health,Leicestershire Partnership NHS Trust,26/01/22,NURSE - BAND 5 - AGENCY,St Lukes Stroke Ward,HCL NURSING,HNSI0000908,1348.62
Department of Health,Leicestershire Partnership NHS Trust,26/01/22,NURSE - BAND 2 - AGENCY,St Lukes Ward 3,HCL NURSING,HNSI0000908,213.26
Department of Health,Leicestershire Partnership NHS Trust,26/01/22,NURSE - BAND 5 - AGENCY,St Lukes Ward 3,HCL NURSING,HNSI0000908,1112.08
Department of Health,Leicestershire Partnership NHS Trust,26/01/22,NURSE - BAND 2 - AGENCY,Wakerley Ward,HCL NURSING,HNSI0000908,6089.21
Department of Health,Leicestershire Partnership NHS Trust,26/01/22,NURSE - BAND 5 - AGENCY,Wakerley Ward,HCL NURSING,HNSI0000908,4264.23
Department of Health,Leicestershire Partnership NHS Trust,26/01/22,GP IT Expenditure,Area Team,CCS MEDIA,4437042,44238.00
Department of Health,Leicestershire Partnership NHS Trust,26/01/22,GP IT Expenditure,Area Team,DELL COMPUTERS,7402780651,42540.00
Department of Health,Leicestershire Partnership NHS Trust,26/01/22,GP IT Expenditure,Area Team,DELL COMPUTERS,7402780066,78802.85
Department of Health,Leicestershire Partnership NHS Trust,26/01/22,GP IT Expenditure,Area Team,DELL COMPUTERS,7402778047,42540.00
Department of Health,Leicestershire Partnership NHS Trust,27/01/22,Photocopying,Estates & Facilities Central,LEXMARK INTERNATIONAL LTD,900650302469,33302.05
Department of Health,Leicestershire Partnership NHS Trust,27/01/22,Leased / Hired Vehicles,Autism,AUTOMOTIVE LEASING LTD,509468389,638.96
Department of Health,Leicestershire Partnership NHS Trust,27/01/22,Prep_ LT1y -Prepayments Lease Cars,Balance Sheet Collection,AUTOMOTIVE LEASING LTD,509468389,24541.75
Department of Health,Leicestershire Partnership NHS Trust,27/01/22,Trade_Drs_LT1y -Lease Cars Invoicing Contrl Ac.,Balance Sheet Collection,AUTOMOTIVE LEASING LTD,509468389,424.00
Department of Health,Leicestershire Partnership NHS Trust,27/01/22,VAT_Drs _ LT1y -VAT Contracted Out Services Input Tax,Balance Sheet Collection,AUTOMOTIVE LEASING LTD,509468389,207.80
Department of Health,Leicestershire Partnership NHS Trust,27/01/22,Leased / Hired Vehicles,COVID 19,AUTOMOTIVE LEASING LTD,509468389,472.36
Department of Health,Leicestershire Partnership NHS Trust,27/01/22,Leased / Hired Vehicles,Children's Occupational Therapy,AUTOMOTIVE LEASING LTD,509468389,12.50
Department of Health,Leicestershire Partnership NHS Trust,27/01/22,Leased / Hired Vehicles,FYPC Group 1 Management,AUTOMOTIVE LEASING LTD,509468389,560.51
Department of Health,Leicestershire Partnership NHS Trust,27/01/22,Leased / Hired Vehicles,Forensic Services - Community,AUTOMOTIVE LEASING LTD,509468389,40.15
Department of Health,Leicestershire Partnership NHS Trust,27/01/22,Leased / Hired Vehicles,Integrated Specialist Palliative Care Team,AUTOMOTIVE LEASING LTD,509468389,10.00
Department of Health,Leicestershire Partnership NHS Trust,27/01/22,Leased / Hired Vehicles,School Age Immunisation and Vaccinations,AUTOMOTIVE LEASING LTD,509468389,4574.40
Department of Health,Leicestershire Partnership NHS Trust,27/01/22,Leased / Hired Vehicles,Support Services (Learn Dis),AUTOMOTIVE LEASING LTD,509468389,94.42
Department of Health,Leicestershire Partnership NHS Trust,27/01/22,Leased / Hired Vehicles,West Planned Care - NWL Hub,AUTOMOTIVE LEASING LTD,509468389,15.00
Department of Health,Leicestershire Partnership NHS Trust,27/01/22,UHL Facilities Management SLA,Estates Central Invoices To Recharge,UHL NHS TRUST (RWE),L0256860,940375.84
Department of Health,Leicestershire Partnership NHS Trust,28/01/22,WIP Project Not in BS - Information Technology,Work in Progress,CHANNEL 3 CONSULTING,20324,44928.00
